Cogmind - Beta 12 @@@ ROGUE MODE // 2023.04.11 @ 11:46:26 Player: btmk16 Result: Destroyed by S-43 Plague with Heavy Machine Gun Performance ------------- Evolutions (8) 4000 Regions Visited (38) 7600 Robots Destroyed (192) 960 Value Destroyed (5847) 5847 Prototype IDs (79) 1580 Alien Tech Used (4) 800 Bonus (12937) 12937 TOTAL SCORE: 33724 Bonus ------- High Alert Combat Kills 191 Follower Combat Kills 2143 Met Data Miner 300 Met Imprinter 300 Met Zhirov 300 Met Warlord at Base 500 MAIN.C Attacked Warlord 500 Found Hidden Lab 3000 Used Core Reset Matrix 3000 Met Warlord at Research 2000 Pursued by Intercept 1000 Friendly Fire -297 Cogmind --------- Core Integrity 0/1450 Matter 131/300 Energy 100/100 System Corruption 41% Temperature Cool (0) Movement Core (50) Location -2/Quarantine Parts ------- > --- POWER (2) -------- (None) > --- PROPULSION (8) --- Myomer Leg Gravmag System Improved Antigrav System Improved Antigrav System Improved Linear Gravjet Improved Q-thruster > --- UTILITY (11) ----- Experimental Targeting Computer Experimental Core Analyzer Armor Integrity Analyzer Hacking Suite Experimental Hacking Suite Improved System Shield Experimental System Shield > --- WEAPON (2) ------- (None) > --- INVENTORY (5) ---- Advanced Cryofiber Web Matter Compressor (0) Advanced Weapon Cycler Stasis Canceller Peak State ------------ > --- POWER ------------ Light Quantum Reactor Light Quantum Reactor > --- PROPULSION ------- Cooled Impulse Thruster Cooled Impulse Thruster Impulse Thruster Array Impulse Thruster Array Impulse Thruster Array > --- UTILITY ---------- Experimental Heat Sink Large Storage Unit Spectral Analyzer Long-range Sensor Array Experimental Signal Interpreter Experimental Melee Analysis Suite Light Regenerative Plating Advanced Hacking Suite Experimental Hacking Suite Experimental System Shield Quantum Router > --- WEAPON ----------- Plasma Lance Plasma Lance > --- INVENTORY -------- Medium Storage Unit Advanced Energy Well Long-range Sensor Array Experimental Core Analyzer Centrium Medium Armor Plating AEGIS Remote Shield Advanced Component Analysis Suite Transdimensional Reconstructor Potential Cannon Warp Cannon Gamma Bomb Array RU-N14's Throwing Claymores v3 RU-N14's Throwing Claymores v3 RU-N14's Throwing Claymores v3 [Rating: 191] Favorites ----------- Power Light Nuclear Core Engine Ion Engine Power Core Light Nuclear Core Reactor Light Antimatter Reactor Propulsion Biomechanical Wings Treads Light Treads Leg Flexi-carbon Leg Wheel Wheel Hover Unit Improved Antigrav System Flight Unit Biomechanical Wings Utility Hacking Suite Device Improved Sensor Array Storage Medium Storage Unit Processor Spectral Analyzer Hackware Hacking Suite Protection Light Regenerative Plating Weapon Heavy Assault Rifle Energy Gun Medium Laser Energy Cannon Advanced Plasma Cannon Ballistic Gun Heavy Assault Rifle Ballistic Cannon Heavy Mass Driver Launcher Long-range Missile Launcher Special Weapon RU-N14's Throwing Claymores v3 Impact Weapon Power Maul Slashing Weapon Power Sword Piercing Weapon Plasma Lance Build | -11 -10 -10 -9 -9 -9 -8 -8 -7 -7 -7 -7 -7 -7 -6 -6 -6 -6 -6 -6 -6 -5 -5 -5 -5 -5 -4 -4 -4 -4 -4 -4 -4 -3 -3 -3 -3 -2 -2 ------- Run | Jun Mat Min Mat Min Exi Min Mat Fac Was Fac Low Low Dat Pro Fac Was Fac Low Low Zio Pro Fac Upp Upp War Pro Fac Was Fac Upp Upp Zhi Pro Res Arm Lab Res Qua Slots Evolved 16 | . . . 2 . . . 2 2 . . . . . . 2 . . . . . . 2 . . . . 2 . . . . . . 2 . . 2 . Power 1 | . . . . . . . . . . . . . . . . . . . . . . . . . . . 1 . . . . . . . . . . . Propulsion 6 | . . . 1 . . . . . . . . . . . 1 . . . . . . . . . . . 1 . . . . . . 1 . . 2 . Utility 9 | . . . 1 . . . 2 2 . . . . . . 1 . . . . . . 2 . . . . . . . . . . . 1 . . . . Weapon . | . . . . . . . . . . . . . . . . . . . . . . . . . . . . . . . . . . . . . . . Parts Attached 469 | 8 21 9 9 . . 1 8 21 14 11 . 3 . . 18 12 8 3 3 11 3 10 4 3 20 5 20 4 14 4 6 9 7 22 3 20 118 37 Power 47 | 2 5 . 2 . . . 2 2 1 3 . . . . 3 . 2 . . . 1 2 . . 2 . 4 . 1 . . 2 . . . . 12 1 Engine 14 | 2 5 . 2 . . . 1 . . . . . . . 2 . . . . . . . . . 1 . 1 . . . . . . . . . . . Core 18 | . . . . . . . 1 2 1 3 . . . . 1 . 2 . . . 1 2 . . 1 . . . . . . . . . . . 3 1 Reactor 15 | . . . . . . . . . . . . . . . . . . . . . . . . . . . 3 . 1 . . 2 . . . . 9 . Propulsion 115 | 2 5 2 3 . . . 2 3 5 3 . . . . 4 2 . . . . 2 3 . 2 3 . 4 . 5 1 . . 6 12 . . 26 20 Treads 8 | 2 5 1 . . . . . . . . . . . . . . . . . . . . . . . . . . . . . . . . . . . . Leg 5 | . . . . . . . . . . . . . . . . . . . . . . . . . . . . . . . . . . . . . 4 1 Wheel 1 | . . 1 . . . . . . . . . . . . . . . . . . . . . . . . . . . . . . . . . . . . Hover 17 | . . . . . . . . . . . . . . . 1 . . . . . . . . . . . 1 . . . . . . 1 . . 1 13 Flight 84 | . . . 3 . . . 2 3 5 3 . . . . 3 2 . . . . 2 3 . 2 3 . 3 . 5 1 . . 6 11 . . 21 6 Utility 182 | 2 3 2 1 . . 1 4 7 4 2 . . . . 6 4 2 1 1 10 . 4 1 . 7 1 9 2 2 3 4 5 . 5 1 9 68 11 Device 90 | 1 1 1 . . . . 1 1 2 . . . . . . 1 . . . 1 . 1 . . 3 1 4 . . 1 2 1 . 3 . 6 54 5 Storage 19 | 1 2 . . . . . . 1 . . . . . . 1 . 1 . . . . . . . . . 3 . . . . 1 . 1 . 1 5 2 Processor 15 | . . . . . . . 1 1 . . . . . . 2 1 . 1 . 4 . . . . 1 . . . . . . . . . . . 3 1 Hackware 22 | . . . 1 . . 1 2 1 . 1 . . . . 3 . 1 . . 2 . 2 1 . . . 1 . . . 1 . . 1 . 1 1 2 Protection 36 | . . 1 . . . . . 3 2 1 . . . . . 2 . . 1 3 . 1 . . 3 . 1 2 2 2 1 3 . . 1 1 5 1 Artifact . | . . . . . . . . . . . . . . . . . . . . . . . . . . . . . . . . . . . . . . . Weapon 125 | 2 8 5 3 . . . . 9 4 3 . 3 . . 5 6 4 2 2 1 . 1 3 1 8 4 3 2 6 . 2 2 1 5 2 11 12 5 Energy Gun 3 | 1 1 . . . . . . . . . . . . . . . . . . . . . . . . . . . . . . . . . . 1 . . Energy Cannon 9 | . . . . . . . . . . . . . . . . . . . . . . . 1 1 2 . . 1 . . . . . . . 2 2 . Ballistic Gun 13 | 1 7 2 . . . . . . 1 . . . . . . . . . . . . . . . . . . . . . . . . . . . 2 . Ballistic Cannon 1 | . . . . . . . . . . . . . . . . 1 . . . . . . . . . . . . . . . . . . . . . . Launcher 16 | . . 1 . . . . . 2 1 1 . 2 . . 1 1 1 1 1 . . . 1 . . . . . 2 . . . . 1 . . . . Special Weapon 19 | . . . . . . . . . . . . . . . . . . . . . . . . . 1 2 . . 1 . 2 . 1 2 . 2 4 4 Impact Weapon 8 | . . 2 1 . . . . . . . . . . . 3 . . . . . . . . . 1 . . . . . . . . . . . 1 . Slashing Weapon 23 | . . . 2 . . . . 7 1 . . . . . 1 4 3 1 1 1 . . . . . 1 . . . . . . . . . . . 1 Piercing Weapon 33 | . . . . . . . . . 1 2 . 1 . . . . . . . . . 1 1 . 4 1 3 1 3 . . 2 . 2 2 6 3 . Special Melee Weapon . | . . . . . . . . . . . . . . . . . . . . . . . . . . . . . . . . . . . . . . . Unidentified Prototypes 50 | . . . 1 . . . . . 2 1 . . . . . . . . . 5 . 1 . . 7 . 2 1 2 . . 5 . 1 2 10 8 2 Parts Lost 84 | . 1 9 . . . . . 4 1 . . . . 5 5 . . . . 1 1 . . 2 1 1 1 . 2 1 . . 2 . . 3 34 10 Power 13 | . 1 . . . . . . 1 . . . . . 1 . . . . . . . . . 1 1 . . . 1 . . . . . . 1 6 . Propulsion 33 | . . 2 . . . . . 1 1 . . . . 1 1 . . . . . 1 . . . . . . . 1 . . . 2 . . . 16 7 Utility 27 | . . 1 . . . . . 2 . . . . . 2 4 . . . . 1 . . . . . 1 1 . . 1 . . . . . 2 10 2 Weapon 11 | . . 6 . . . . . . . . . . . 1 . . . . . . . . . 1 . . . . . . . . . . . . 2 1 Highest Loss Streak 16 | . 1 9 . . . . . 3 1 . . . . 2 2 . . . . 1 1 . . 2 1 1 1 . 2 1 . . 2 . . 3 16 10 To Critical Strikes 1 | . . . . . . . . . . . . . . 1 . . . . . . . . . . . . . . . . . . . . . . . . Average Slot Usage (%) 90 | . 98 86 93 100 100 100 97 96 99 93 92 92 92 78 69 87 86 93 92 92 91 93 94 92 97 97 96 100 97 81 84 83 84 86 84 78 78 58 Engine 3 | . 13 11 8 11 11 11 3 . . . . . . . 1 6 . . . . . . . . 2 . 1 . . . . . . . . . . . Core 2 | . . . . . . . 5 6 7 7 7 7 7 3 . . 6 6 6 6 5 5 5 3 2 5 3 . . . . . . . . . 1 1 Reactor 1 | . . . . . . . . . . . . . . . . . . . . . . . . . . . 4 10 9 5 5 5 5 4 4 1 4 . Treads 4 | . 27 23 1 . . . . . . . . . . . . . . . . . . . . . . . . . . . . . . . . . . . Flight 17 | . . . 27 33 33 33 24 23 22 23 23 23 23 21 18 21 20 20 20 20 19 17 17 17 21 23 23 26 25 26 26 26 25 24 19 19 19 10 Device 8 | . 14 11 11 11 11 1 9 7 7 7 7 7 7 7 3 . . . . . . 2 5 5 5 6 12 15 14 13 10 10 10 13 19 12 6 3 Storage 5 | . 14 11 . . . . . 1 . . . . . . 4 6 6 6 6 6 6 5 5 5 5 5 5 5 5 5 5 5 5 4 4 4 3 . Processor 12 | . . . . . . . 6 12 15 13 7 7 7 7 6 22 20 20 20 23 26 23 23 23 23 23 17 15 15 15 15 15 15 14 14 14 12 11 Hackware 14 | . . . 9 11 11 20 27 22 23 24 30 30 30 28 25 17 19 20 20 16 13 22 23 23 18 14 10 10 10 10 15 15 15 14 9 11 16 16 Protection 3 | . . . 11 11 11 11 2 6 6 7 7 7 7 3 . 4 6 6 6 5 6 2 . . 3 5 5 5 4 5 5 4 5 4 4 5 4 1 Energy Gun 1 | . 5 11 . . . . . . 1 1 . . . . . . . . . . . . . . 1 . . . . . . . . . . . . . Ballistic Gun 3 | . 21 12 5 . . . . . 4 . . . . . . . . . . . . . . . . . . . . . . . . . . . . . Slashing Weapon 3 | . . . 14 22 22 22 18 13 5 . . . . . 1 4 6 12 12 13 13 10 5 4 . 1 2 . . . . . . . . . . 2 Piercing Weapon 2 | . . . . . . . . . 1 6 7 7 7 4 . . . . . . . . 2 . 7 7 7 9 9 . . . . 4 8 6 5 . Naked Turns 26 | . . 26 . . . . . . . . . . . . . . . . . . . . . . . . . . . . . . . . . . . . Heaviest Build 92 | 14 92 91 13 9 9 9 11 15 17 17 15 22 15 15 18 22 28 33 28 27 27 26 29 28 31 34 47 47 50 50 60 53 60 58 61 61 75 25 Greatest Support 96 | 40 40 40 15 15 15 15 15 16 17 17 15 15 15 15 16 28 28 28 28 28 28 30 30 30 28 28 50 50 56 50 50 50 52 64 64 64 96 48 Greatest Overweight (x) 29 | . 29 4 1 . . . . . 1 1 . 1 . . 1 1 . 1 . . . . . 6 1 1 1 . . . 1 1 1 2 3 . 10 2 Average Overweight (x) . | . . . . . . . . . . . . . . . . . . . . . . . . . . . . . . . . . . . . . . . Largest Inventory Capacity 25 | 8 25 25 5 5 5 5 5 5 5 5 5 5 5 5 10 10 10 10 10 10 10 10 10 10 10 10 10 10 10 10 10 10 10 10 10 10 15 5 Average Capacity 10 | 7 19 20 5 5 5 5 5 5 5 5 5 5 5 5 9 10 10 10 10 10 10 10 10 10 10 10 10 10 10 10 10 10 10 10 10 10 11 5 Most Carried 24 | 7 23 24 5 5 5 5 5 5 5 5 5 5 5 5 10 10 10 10 10 10 10 10 10 10 10 10 10 10 10 10 10 10 10 10 10 10 15 5 Average Carried 9 | 5 14 19 4 5 5 5 4 4 4 4 5 4 5 5 5 9 9 9 9 9 10 9 10 9 9 9 9 9 9 9 9 9 9 9 9 9 11 4 Final Capacity 25 | 8 25 5 5 5 5 5 5 5 5 5 5 5 5 5 10 10 10 10 10 10 10 10 10 10 10 10 10 10 10 10 10 10 10 10 10 10 5 5 Final Carried 23 | 7 23 5 5 5 5 5 5 5 5 5 5 5 5 5 9 10 10 10 10 10 10 10 10 10 10 10 9 10 10 10 10 10 10 10 9 10 3 4 Class Distribution -------------------- 26% | Hacker-Scout 23% | Mutant 20% | Hacker-Mutant 16% | Hacker-Sprinter 3% | Wizard-Scout 3% | Hacker-Gladiator Dominant Class ---------------- Mutant | -10/Materials Mutant | -10/Mines Mutant | -9/Materials Mutant | -9/Mines Mutant | -9/Exiles Hacker-Mutant | -8/Mines Hacker-Mutant | -8/Materials Hacker-Mutant | -7/Factory Hacker-Sprinter | -7/Waste Hacker-Sprinter | -7/Factory Hacker-Sprinter | -7/Lower Caves Hacker-Sprinter | -7/Lower Caves Hacker-Sprinter | -7/Data Miner Hacker-Sprinter | -6/Proximity Caves Hacker-Sprinter | -6/Factory Hacker-Gladiator | -6/Waste Hacker-Gladiator | -6/Factory Hacker-Mutant | -6/Lower Caves Hacker-Mutant | -6/Lower Caves Hacker-Mutant | -6/Zion Hacker-Mutant | -5/Proximity Caves Hacker-Mutant | -5/Factory Hacker-Scout | -5/Upper Caves Hacker-Scout | -5/Upper Caves Hacker-Scout | -5/Warlord Hacker-Scout | -4/Proximity Caves Hacker-Scout | -4/Factory Hacker-Scout | -4/Waste Hacker-Scout | -4/Factory Hacker-Scout | -4/Upper Caves Hacker-Sprinter | -4/Upper Caves Hacker-Sprinter | -4/Zhirov Hacker-Sprinter | -3/Proximity Caves Hacker-Scout | -3/Research Commander-Scout | -3/Armory Hacker-Scout | -3/Lab Wizard-Scout | -2/Research Hacker-Mutant | -2/Quarantine Resources | -11 -10 -10 -9 -9 -9 -8 -8 -7 -7 -7 -7 -7 -7 -6 -6 -6 -6 -6 -6 -6 -5 -5 -5 -5 -5 -4 -4 -4 -4 -4 -4 -4 -3 -3 -3 -3 -2 -2 ----------- Run | Jun Mat Min Mat Min Exi Min Mat Fac Was Fac Low Low Dat Pro Fac Was Fac Low Low Zio Pro Fac Upp Upp War Pro Fac Was Fac Upp Upp Zhi Pro Res Arm Lab Res Qua Matter Collected 6022 | 340 521 113 152 . . 10 80 153 211 116 82 119 . 10 110 146 178 35 47 212 53 80 150 60 200 45 188 50 115 71 40 217 75 99 148 76 1249 471 Remotely . | . . . . . . . . . . . . . . . . . . . . . . . . . . . . . . . . . . . . . . . Salvage Created 6475 | 148 644 172 177 30 . . 160 329 . 72 . . . . 133 39 217 47 82 . 51 751 33 31 . 362 671 . 66 . 48 309 57 448 48 76 920 354 Parts 367 | 13 48 10 11 2 . . 9 24 . 7 . 1 . . 5 2 16 6 3 . 4 46 5 3 . 11 30 . 4 . 3 4 4 29 2 8 39 18 Haulers Intercepted 16 | . 2 . 2 . . . 3 1 . 1 . . . . . . 1 . . . . . . . . . 2 . . . . . . 1 . . 2 1 Recyclers Shooed 3 | 1 . 1 . . . . . 1 . . . . . . . . . . . . . . . . . . . . . . . . . . . . . . Parts Field Recycled . | . . . . . . . . . . . . . . . . . . . . . . . . . . . . . . . . . . . . . . . Retrieved Matter . | . . . . . . . . . . . . . . . . . . . . . . . . . . . . . . . . . . . . . . . Parts Self-Destructed 40 | . . . . . . . . . . . 3 . . 3 . . . 2 2 . 9 . 3 2 . 9 . . . . 2 3 2 . . . . . Prevented 3 | . . . . . . . . . . . 2 . . . . . . . . . 1 . . . . . . . . . . . . . . . . . Kills | -11 -10 -10 -9 -9 -9 -8 -8 -7 -7 -7 -7 -7 -7 -6 -6 -6 -6 -6 -6 -6 -5 -5 -5 -5 -5 -4 -4 -4 -4 -4 -4 -4 -3 -3 -3 -3 -2 -2 ------- Run | Jun Mat Min Mat Min Exi Min Mat Fac Was Fac Low Low Dat Pro Fac Was Fac Low Low Zio Pro Fac Upp Upp War Pro Fac Was Fac Upp Upp Zhi Pro Res Arm Lab Res Qua Combat Hostiles Destroyed 96 | . 13 3 . . . . . 5 . . . 1 . . 4 . 3 4 3 . 1 2 5 3 . 10 . . . . 6 . 5 9 . 1 13 5 Melee 9 | . . . . . . . . . . . . . . . . . . . . . 1 2 . . . . . . . . . . . 1 . 1 3 1 Guns 15 | . 13 . . . . . . . . . . . . . . . . . . . . . . . . . . . . . . . . . . . 2 . Cannons 16 | . . . . . . . . . . . . . . . . . . . . . . . . . . 2 . . . . 2 . 1 2 . . 7 2 AOE 56 | . . 3 . . . . . 5 . . . 1 . . 4 . 3 4 3 . . . 5 3 . 8 . . . . 4 . 4 6 . . 1 2 Classes Destroyed 19 | 3 5 2 . . . . . 1 . . . 1 . . . . . . . . 1 1 . . . 2 . . . . . . . . . . 3 . Worker 22 | 2 . . 2 . . . . 5 . . . . . . 3 . . . . . . 3 . . . . 3 . 1 . . . . . . . 3 . Builder 8 | . . 1 . . . . . . . . . . . . . . 2 . . . . 2 . . . . 1 . . . . . . 1 . . 1 . Tunneler 10 | 2 . 2 . 1 . . . . . . . . . . 1 . . . . . . 2 . . . . 1 . . . . . . 1 . . . . Hauler 16 | . 2 . 2 . . . 3 1 . 1 . . . . . . 1 . . . . . . . . . 2 . . . . . . 1 . . 2 1 Recycler 9 | 1 1 1 . . . . . 2 . . . . . . . . . . . . . 2 . . . . 1 . . . . . . 1 . . . . Minesweeper 1 | . . . . . . . . . . . . . . . . . . . . . 1 . . . . . . . . . . . . . . . . . Operator 16 | . 2 . 2 . . . . 2 . . . . . . . . 2 . . . . 3 . . . . 1 . 1 . . . . 1 . . . 2 Watcher 16 | . 2 . 1 . . . 1 . . 1 . . . . 1 . . . . . . 2 . . . . 5 . 1 . . . . 1 1 . . . Swarmer 55 | . 6 . . . . . . 4 . . . . . . 4 . 3 4 3 . 1 . 5 3 . 3 . . . . 6 . 5 8 . . . . Cutter 2 | . . . . . . . . . . . . . . . . . . . . . . 2 . . . . . . . . . . . . . . . . Grunt 12 | . 7 . . . . . . . . . . . . . . . . . . . . . . . . 2 . . . . . . . . . . . 3 Duelist 1 | . . . . . . . . . . . . . . . . . . . . . . . . . . 1 . . . . . . . . . . . . Sentry 1 | . . . . . . . . . . . . . . . . . . . . . . . . . . . . . . . . . . . . . 1 . Demolisher 1 | . . . . . . . . . . . . . . . . . . . . . . . . . . . . . . . . . . . . . 1 . Hunter 7 | . . . . . . . . . . . . . . . . . . . . . . . . . . 4 . . . . . . . . . . 3 . Programmer 3 | . . . . . . . . 1 . . . . . . . . . . . . . . . . . . . . . . . . . 1 . . 1 . Tracker 6 | . . . . . . . . . . . . . . . . . . . . . . . . . . . . . . . . . . . . . 4 2 Combat Programmer 2 | . . . . . . . . . . . . . . . . . . . . . . . . . . . . . . . . . . . . . 2 . Executioner 1 | . . . . . . . . . . . . . . . . . . . . . . . . . . . . . . . . . . . . . 1 . Thief 1 | . . . . . . . . . . . . 1 . . . . . . . . . . . . . . . . . . . . . . . . . . Assembled 3 | . . 3 . . . . . . . . . . . . . . . . . . . . . . . . . . . . . . . . . . . . Wasp 1 | . . . . . . . . . . . . . . . . 1 . . . . . . . . . . . . . . . . . . . . . . Best Kill Streak 10 | 3 3 5 2 1 . . 1 9 . 1 . 1 . . 4 . 4 4 3 . 1 4 4 3 . 10 4 . 2 . 6 . 5 6 1 1 4 4 Combat Bots Only 10 | . 3 3 . . . . . 5 . . . 1 . . 4 . 3 4 3 . 1 2 4 3 . 10 . . . . 6 . 5 4 . 1 4 4 Max Kills in Single Turn 6 | 1 1 2 1 1 . . 1 3 . 1 . 1 . . 2 1 2 3 1 . 1 1 2 2 . 4 1 . 1 . 2 . 4 6 1 1 1 2 Gunslinging . | . . . . . . . . . . . . . . . . . . . . . . . . . . . . . . . . . . . . . . . Exploded 3 | . . 1 . . . . . 2 . . . 1 . . 2 . 2 3 1 . . . 2 2 . 3 . . . . 2 . 3 3 . . 1 1 Melee 1 | . . . . . . . . . . . . . . . . . . . . . 1 1 . . . . . . . . . . . 1 . 1 1 1 Uniques/NPCs Destroyed 1 | . . . . . . . . . . . . . . . . . . . . . . . . . . . . . . . . . . . . 1 . . A5 (-3/Lab) Combat | -11 -10 -10 -9 -9 -9 -8 -8 -7 -7 -7 -7 -7 -7 -6 -6 -6 -6 -6 -6 -6 -5 -5 -5 -5 -5 -4 -4 -4 -4 -4 -4 -4 -3 -3 -3 -3 -2 -2 -------- Run | Jun Mat Min Mat Min Exi Min Mat Fac Was Fac Low Low Dat Pro Fac Was Fac Low Low Zio Pro Fac Upp Upp War Pro Fac Was Fac Upp Upp Zhi Pro Res Arm Lab Res Qua Damage Taken 11816 | . 592 126 144 . . 15 55 513 33 17 . 103 . 442 710 . 257 . 148 . 143 156 151 50 91 252 136 22 585 40 45 . 268 146 67 526 4622 1361 Core 2586 | . 64 26 12 . . . 41 87 . 5 . 35 . 105 341 . 5 . 48 . 37 25 20 16 47 103 18 . 96 . 13 . 21 . . 80 952 389 Absorbed by Shields 12 | . . . . . . . . . . . . . . . . . . . . . . . . . . . . . . . . . . . 12 . . . Redirected to Shielding 109 | . . . . . . . . 6 . . . . . . . . . . . . . . . . . . . . . . . . . . . . . 103 Regen/Repaired (Parts) 1521 | . . . . . . . 47 . 84 28 . . . . . 161 . . . . . 68 . . 74 56 39 89 117 9 52 21 22 224 42 64 250 74 Core Remaining (%) 79 | 100 . 64 . . . 97 92 . . . . . . 66 . . . . . . 49 . . . . 78 . . . . . . 87 . . 85 . . Volleys Fired 224 | 11 66 8 4 . . . . 5 12 . . 4 . . 4 . 2 2 6 . . . 8 2 . 10 . . 4 . 5 . 3 2 . 4 54 8 Largest 2 | 2 2 2 2 . . . . 1 1 . . 1 . . 1 . 1 1 1 . . . 1 1 . 1 . . 1 . 1 . 1 1 . 1 1 1 Hottest 200 | 70 73 73 46 . . . . 30 23 . . 39 . . 39 . 39 43 43 . . . 98 43 . . . . 49 . . . . . . . 200 . Shots Fired 305 | 22 128 12 8 . . . . 5 13 . . 4 . . 4 . 2 2 6 . . . 8 2 . 10 . . 4 . 5 . 3 2 . 4 53 8 Gun 199 | 22 128 5 8 . . . . . 13 . . . . . . . . . . . . . . . . . . . . . . . . . . . 23 . Cannon 11 | . . . . . . . . . . . . . . . . . . . . . . . 2 . . . . . . . . . . . . . 9 . Launcher 42 | . . 7 . . . . . 5 . . . 4 . . 4 . 2 2 6 . . . 6 2 . . . . 4 . . . . . . . . . Special 53 | . . . . . . . . . . . . . . . . . . . . . . . . . . 10 . . . . 5 . 3 2 . 4 21 8 Kinetic 169 | 11 111 3 8 . . . . . 13 . . . . . . . . . . . . . . . . . . . . . . . . . . . 23 . Thermal 41 | 11 17 2 . . . . . . . . . . . . . . . . . . . . 2 . . . . . . . . . . . . . 9 . Explosive 88 | . . . . . . . . 5 . . . 4 . . 4 . 2 2 6 . . . 6 2 . 10 . . 4 . 5 . 3 2 . 4 21 8 Electromagnetic 7 | . . 7 . . . . . . . . . . . . . . . . . . . . . . . . . . . . . . . . . . . . Robot Hit Streak 18 | 15 16 4 4 . . . . 3 2 . . 1 . . 1 . 2 . 2 . . . 1 . . 3 . . . . 4 . 2 4 . . 17 18 Robot Miss Streak 4 | 2 4 2 2 . . . . 1 3 . . 1 . . 2 . . 1 2 . . . 2 . . 1 . . . . 1 . 1 . . . 2 1 Penetration Max . | . . . . . . . . . . . . . . . . . . . . . . . . . . . . . . . . . . . . . . . Secondary Targets 3 | . 3 . . . . . . . . . . . . . . . . . . . . . . . . . . . . . . . . . . . . . Max Gunslinging Chain 1 | . 1 . . . . . . . . . . . . . . . . . . . . . . . . . . . . . . . . . . . . . Shots Hit Robots 350 | 16 77 10 14 1 . . 8 17 5 5 . 1 . . 6 1 13 . 3 . 2 24 2 . . 9 23 . 3 . 3 5 2 13 2 12 66 7 Core Hits 242 | 7 30 8 7 1 . . 4 15 . . . 1 . . 6 1 9 4 4 . 1 14 7 3 . 18 9 . 1 . 6 1 5 16 1 4 46 13 Critical Kills 2 | . . 1 1 . . . . . . . . . . . . . . . . . . . . . . . . . . . . . . . . . . . Critical Parts Destroyed 2 | . . . . . . . . . . . . . . . 2 . . . . . . . . . . . . . . . . . . . . . . . Critical Strikes 23 | 2 2 1 1 . . . . 1 . 2 . . . . 2 . 1 . . . . . . . . 1 1 . 1 . . 1 . 1 . 1 4 1 Burn 4 | 2 2 . . . . . . . . . . . . . . . . . . . . . . . . . . . . . . . . . . . . . Smash 4 | . . 1 1 . . . . . . . . . . . 2 . . . . . . . . . . . . . . . . . . . . . . . Sever 6 | . . . . . . . . 1 . . . . . . . . 1 . . . . . . . . . . . . . . . . . . . 3 1 Impale 8 | . . . . . . . . . . 2 . . . . . . . . . . . . . . . 1 . . 1 . . 1 . 1 . 1 1 . Sunder 1 | . . . . . . . . . . . . . . . . . . . . . . . . . . . 1 . . . . . . . . . . . Melee Attacks 535 | . . 4 23 2 1 . 17 34 . 20 7 4 . 2 14 2 29 . 1 2 4 79 2 . 1 9 76 2 38 . . 5 . 38 28 30 52 9 Impact 19 | . . 4 1 . . . . . . . . . . . 12 1 . . . . . . . . 1 . . . . . . . . . . . . . Slashing 214 | . . . 22 2 1 . 17 34 . . . . . . 2 1 29 . 1 2 4 78 2 . . . 10 . . . . . . . . . . 9 Piercing 281 | . . . . . . . . . . 20 7 4 . 2 . . . . . . . 1 . . . 8 56 2 28 . . 5 . 38 28 30 52 . Entropic 21 | . . . . . . . . . . . . . . . . . . . . . . . . . . 1 10 . 10 . . . . . . . . . Sneak Attacks 70 | . . 2 3 1 . . 3 10 . 1 . . . . 4 1 4 . . . 1 10 . . . . 15 . 2 . . . . 5 . . 7 1 Combat Hostiles 1 | . . . . . . . . . . . . . . . . . . . . . . . . . . . . . . . . . . 1 . . . . Follow-up Attacks 16 | . . . 1 . . . . 3 . . . . . . . . . . . . . 3 . . . . 5 . . . . . . . . 1 3 . Damage Inflicted 27032 | 175 1051 477 557 69 . . 399 1503 149 299 . 125 . . 981 108 1183 399 479 . 152 1994 553 339 . 2194 1756 . 220 . 749 417 712 1972 155 927 5391 1547 Guns 2272 | 175 1051 38 63 . . . . . 149 . . . . . . . . . . . . . . . . . . . . . . . . . . . 796 . Cannons 882 | . . . . . . . . . . . . . . . . . . . . . . . . . . . . . . . . . . . . . 882 . Explosions 9251 | . . 260 . . . . . 533 . . . 125 . . 466 . 201 399 421 . . . 553 339 . 1660 . . . . 597 . 615 1162 . . 1105 815 Melee 13038 | . . 179 494 69 . . 399 970 . 299 . . . . 515 108 982 . 58 . 152 1994 . . . 304 1756 . 220 . . 417 . 729 155 927 1777 534 Ramming . | . . . . . . . . . . . . . . . . . . . . . . . . . . . . . . . . . . . . . . . Kinetic 2007 | 61 912 26 63 . . . . . 149 . . . . . . . . . . . . . . . . . . . . . . . . . . . 796 . Thermal 1656 | 114 139 42 . . . . . . . . . . . . . . . . . . . . . . . . . . . . . . . . . . 1361 . Explosive 8512 | . . . . . . . . 533 . . . 125 . . 466 . 201 399 421 . . . 553 339 . 1660 . . . . 597 . 615 1162 . . 626 815 Electromagnetic 230 | . . 230 . . . . . . . . . . . . . . . . . . . . . . . . . . . . . . . . . . . . Impact 544 | . . 179 82 . . . . . . . . . . . 283 . . . . . . . . . . . . . . . . . . . . . . . Slashing 7796 | . . . 412 69 . . 399 970 . . . . . . 232 108 982 . 58 . 152 1994 . . . 230 297 . . . 152 . 97 81 . . 831 732 Piercing 6002 | . . . . . . . . . . 299 . . . . . . . . . . . . . . . 304 1174 . 220 . . 417 . 729 155 927 1777 . Entropic 285 | . . . . . . . . . . . . . . . . . . . . . . . . . . . 285 . . . . . . . . . . . Highest Corruption 41 | . 2 6 . . . . . 2 2 2 2 2 2 2 . . . . . . . . . . . . 2 2 2 2 2 2 2 . . 6 33 41 Average Corruption 5 | . 2 2 . . . . . 1 2 2 2 2 2 2 . . . . . . . . . . . . 2 2 2 2 2 2 2 . . 5 15 35 Corruption Purged . | . . . . . . . . . . . . . . . . . . . . . . . . . . . . . . . . . . . . . . . Corruption Blocked 27 | . . . . . . . . . . . . . . . . . . . . . . . . . . . . . . . . . . . . . 27 . Effects 204 | . 28 18 . . . . . 5 9 7 9 7 . 5 . . . . . . . . . . . . 12 5 5 1 2 1 4 . . 5 52 29 Message Errors 49 | . 6 6 . . . . . 1 3 3 . 2 . . . . . . . . . . . . . . 4 . 1 . . . 1 . . . 15 7 Matter Fused 48 | . 4 3 . . . . . . 1 2 4 2 . 1 . . . . . . . . . . . . 2 1 3 . 1 . 2 . . . 15 7 Heat Flow Errors 24 | . 2 1 . . . . . 1 2 1 1 . . 1 . . . . . . . . . . . . 1 3 . 1 1 . . . . 2 3 4 Energy Discharges 29 | . 8 2 . . . . . . 1 . 1 1 . 2 . . . . . . . . . . . . 1 1 1 . . 1 . . . 1 5 4 Parts Rejected 4 | . 1 . . . . . . . . . . . . . . . . . . . . . . . . . . . . . . . 1 . . 1 1 . Parts Fused 1 | . . . . . . . . 1 . . . . . . . . . . . . . . . . . . . . . . . . . . . . . . Data Loss (minor) 18 | . 4 1 . . . . . 2 1 1 2 . . 1 . . . . . . . . . . . . 2 . . . . . . . . 1 3 . Data Loss (major) 13 | . 2 2 . . . . . . . . 1 1 . . . . . . . . . . . . . . 1 . . . . . . . . . 5 1 Misfires 5 | . 1 3 . . . . . . 1 . . . . . . . . . . . . . . . . . . . . . . . . . . . . . Alerts 4 | . . . . . . . . . . . . 1 . . . . . . . . . . . . . . 1 . . . . . . . . . 1 1 Misdirections 8 | . . . . . . . . . . . . . . . . . . . . . . . . . . . . . . . . . . . . . 3 5 Weapon Failures 1 | . . . . . . . . . . . . . . . . . . . . . . . . . . . . . . . . . . . . . 1 . Overload Shots . | . . . . . . . . . . . . . . . . . . . . . . . . . . . . . . . . . . . . . . . Overflow Damage 3142 | . . 46 62 . . . 19 194 . 96 . 10 . . 288 . 115 17 1 . 67 479 2 . . 151 540 . 215 . 3 375 25 134 11 52 237 3 Projectiles 108 | . . . . . . . . . . . . . . . . . . . . . . . . . . . . . . . 3 . . . . . 105 . Explosions 311 | . . 3 . . . . . 20 . . . 10 . . 30 . . 17 1 . . . 2 . . 91 . . . . . . 25 53 . . 56 3 Melee 2723 | . . 43 62 . . . 19 174 . 96 . . . . 258 . 115 . . . 67 479 . . . 60 540 . 215 . . 375 . 81 11 52 76 . Knockbacks 2 | . . 1 . . . . . . . . . . . . 1 . . . . . . . . . . . . . . . . . . . . . . . Impact 2 | . . 1 . . . . . . . . . . . . 1 . . . . . . . . . . . . . . . . . . . . . . . Kinetic . | . . . . . . . . . . . . . . . . . . . . . . . . . . . . . . . . . . . . . . . Secondary . | . . . . . . . . . . . . . . . . . . . . . . . . . . . . . . . . . . . . . . . Self-Inflicted Damage 167 | . . . . . . . . . . . . 24 . . 16 . . . 8 . . . 65 . . . . . . . . . . . . . 54 . Shots 7 | . . . . . . . . . . . . 1 . . 2 . . . 1 . . . 2 . . . . . . . . . . . . . 1 . Rammed . | . . . . . . . . . . . . . . . . . . . . . . . . . . . . . . . . . . . . . . . Targets Rammed . | . . . . . . . . . . . . . . . . . . . . . . . . . . . . . . . . . . . . . . . Kicked . | . . . . . . . . . . . . . . . . . . . . . . . . . . . . . . . . . . . . . . . Crushed . | . . . . . . . . . . . . . . . . . . . . . . . . . . . . . . . . . . . . . . . Highest Temperature 330 | 130 236 123 2 . . . . 89 240 177 177 . . 221 . . 18 4 16 . . . 92 . . 25 280 330 303 113 135 20 45 243 . 220 297 118 Average Temperature 81 | 56 98 62 2 . . . . 45 116 86 96 . . 101 . . 18 3 7 . . . 50 . . 14 138 143 63 45 54 10 19 71 . 105 146 47 Received Heat Transfer 962 | . 228 . 48 . . 9 . 12 . . . 30 . 75 108 . 39 . 18 . 36 27 . . . 58 18 9 64 12 . . . . . . 117 54 Effects 7 | . . . . . . . . . . . . . . . . . . . . . . . . . . . . . 1 . . . . 3 . . 3 . Energy Bleed 1 | . . . . . . . . . . . . . . . . . . . . . . . . . . . . . 1 . . . . . . . . . Interference 6 | . . . . . . . . . . . . . . . . . . . . . . . . . . . . . . . . . . 3 . . 3 . Siege Activations . | . . . . . . . . . . . . . . . . . . . . . . . . . . . . . . . . . . . . . . . Robots Corrupted . | . . . . . . . . . . . . . . . . . . . . . . . . . . . . . . . . . . . . . . . Combat Hostiles . | . . . . . . . . . . . . . . . . . . . . . . . . . . . . . . . . . . . . . . . Parts Fried 2 | . . . . . . . . . . . . . . . 2 . . . . . . . . . . . . . . . . . . . . . . . Impact Corruptions 8 | . . 2 . . . . . . . . . . . . 6 . . . . . . . . . . . . . . . . . . . . . . . Robots Melted . | . . . . . . . . . . . . . . . . . . . . . . . . . . . . . . . . . . . . . . . Combat Hostiles . | . . . . . . . . . . . . . . . . . . . . . . . . . . . . . . . . . . . . . . . Parts Melted 2 | . 1 . . . . . . . . . . . . . . . . . . . . . . . . . . . . . . . . . . . 1 . Heat Transferred 2173 | 481 555 87 . . . . . . . . . . . . . . . . . . . . . . . . . . . . . . . . . . 1050 . Parts Sabotaged . | . . . . . . . . . . . . . . . . . . . . . . . . . . . . . . . . . . . . . . . Parts Stolen . | . . . . . . . . . . . . . . . . . . . . . . . . . . . . . . . . . . . . . . . Parts Stripped . | . . . . . . . . . . . . . . . . . . . . . . . . . . . . . . . . . . . . . . . Power Chain Reactions 1 | . . 1 . . . . . . . . . . . . . . . . . . . . . . . . . . . . . . . . . . . . Missiles Intercepted . | . . . . . . . . . . . . . . . . . . . . . . . . . . . . . . . . . . . . . . . Alert | -11 -10 -10 -9 -9 -9 -8 -8 -7 -7 -7 -7 -7 -7 -6 -6 -6 -6 -6 -6 -6 -5 -5 -5 -5 -5 -4 -4 -4 -4 -4 -4 -4 -3 -3 -3 -3 -2 -2 ------- Run | Jun Mat Min Mat Min Exi Min Mat Fac Was Fac Low Low Dat Pro Fac Was Fac Low Low Zio Pro Fac Upp Upp War Pro Fac Was Fac Upp Upp Zhi Pro Res Arm Lab Res Qua Peak Influence 1028 | 25 159 35 277 114 . 115 300 591 247 261 . . . . 288 163 772 . . . . 493 . . . . 425 240 1028 . . . . 630 727 . 491 340 Initial 268 | . 16 5 13 108 . . 44 136 172 . . . . . 9 100 . . . . . 151 . . . . 166 144 156 . . . . 94 268 . . 99 Average 206 | 8 64 6 126 109 . 43 95 351 135 128 . . . . 81 122 445 . . . . 339 . . . . 266 198 692 . . . . 397 503 . 166 217 Maximum Alert Level 3 | . . . 1 . . . 1 2 1 1 . . . . 1 . 3 . . . . 2 . . . . 2 1 3 . . . . 2 3 . 2 1 Low Security (%) 60 | 100 100 100 74 100 . 100 94 16 81 70 . . . . 93 100 22 . . . . 6 . . . . 18 42 6 . . . . 12 . . 65 37 Level 1 20 | . . . 25 . . . 5 43 18 29 . . . . 6 . 10 . . . . 63 . . . . 77 57 1 . . . . 24 32 . 16 62 Level 2 14 | . . . . . . . . 39 . . . . . . . . 61 . . . . 29 . . . . 3 . 23 . . . . 63 61 . 18 . Level 3 4 | . . . . . . . . . . . . . . . . . 5 . . . . . . . . . . . 68 . . . . . 6 . . . Level 4 . | . . . . . . . . . . . . . . . . . . . . . . . . . . . . . . . . . . . . . . . Level 5 . | . . . . . . . . . . . . . . . . . . . . . . . . . . . . . . . . . . . . . . . High Security . | . . . . . . . . . . . . . . . . . . . . . . . . . . . . . . . . . . . . . . . Max Security . | . . . . . . . . . . . . . . . . . . . . . . . . . . . . . . . . . . . . . . . Squads Dispatched 73 | . 4 . 3 . . . 2 3 . 2 . 1 . . 4 . 10 . 1 . . 9 . . . . 5 . 4 . . . . 3 5 . 13 4 Investigation 22 | . 1 . 1 . . . . 2 . 1 . . . . 2 . 3 . . . . 4 . . . . 3 . 1 . . . . 2 2 . . . Extermination 8 | . . . . . . . . . . . . . . . 1 . 1 . . . . 3 . . . . 1 . . . . . . 1 1 . . . Reinforcement 23 | . 3 . 2 . . . 2 1 . 1 . . . . 1 . 3 . . . . 2 . . . . 1 . 2 . . . . . 2 . 2 1 Assault 2 | . . . . . . . . . . . . 1 . . . . . . 1 . . . . . . . . . . . . . . . . . . . Garrison 4 | . . . . . . . . . . . . . . . . . 3 . . . . . . . . . . . 1 . . . . . . . . . Intercept 14 | . . . . . . . . . . . . . . . . . . . . . . . . . . . . . . . . . . . . . 11 3 Searches Triggered . | . . . . . . . . . . . . . . . . . . . . . . . . . . . . . . . . . . . . . . . Data Miner Redirects 7 | . . . . . . . . . . . . . . . 2 . . . . . . 1 . . . . . . . . . . . 2 2 . . . Construction Impeded 1 | . . . . . . . . . . . . . . . . . . . . . . . . . . . . . 1 . . . . . . . . . Haulers Reinforced 3 | . . . . . . . . . . 1 . . . . . . 1 . . . . . . . . . . . . . . . . . . . 1 . Active Scanning Responses . | . . . . . . . . . . . . . . . . . . . . . . . . . . . . . . . . . . . . . . . Cargo Convoy Interrupts 1 | . . . . . . . . . . . . . . . . . . . . . . 1 . . . . . . . . . . . . . . . . Stealth | -11 -10 -10 -9 -9 -9 -8 -8 -7 -7 -7 -7 -7 -7 -6 -6 -6 -6 -6 -6 -6 -5 -5 -5 -5 -5 -4 -4 -4 -4 -4 -4 -4 -3 -3 -3 -3 -2 -2 --------- Run | Jun Mat Min Mat Min Exi Min Mat Fac Was Fac Low Low Dat Pro Fac Was Fac Low Low Zio Pro Fac Upp Upp War Pro Fac Was Fac Upp Upp Zhi Pro Res Arm Lab Res Qua Distress Signals 24 | . 1 . 2 . . . 1 . . 1 . . . . . . 2 . . . . 3 . . 1 . 1 . 4 . . . . 1 . . 6 1 Communications Jammed . | . . . . . . . . . . . . . . . . . . . . . . . . . . . . . . . . . . . . . . . Distress Signals . | . . . . . . . . . . . . . . . . . . . . . . . . . . . . . . . . . . . . . . . Times Spotted 523 | . 29 19 17 . . 9 17 27 6 6 . 17 . 11 27 6 23 1 11 . 13 22 6 5 51 12 22 2 40 5 2 . 7 20 18 1 49 22 Peak Tracking Total 17 | . 4 17 11 . . 3 13 8 5 3 . 12 . 4 6 4 5 1 12 . 7 6 5 4 12 11 7 2 17 3 2 . 7 7 5 1 8 7 Tactical Retreats 84 | . . 1 2 . . 3 2 6 . 1 . 8 . 5 5 . 4 . 4 . 3 5 1 1 1 2 5 1 6 2 . . 1 4 3 . 6 2 Traps | -11 -10 -10 -9 -9 -9 -8 -8 -7 -7 -7 -7 -7 -7 -6 -6 -6 -6 -6 -6 -6 -5 -5 -5 -5 -5 -4 -4 -4 -4 -4 -4 -4 -3 -3 -3 -3 -2 -2 ------- Run | Jun Mat Min Mat Min Exi Min Mat Fac Was Fac Low Low Dat Pro Fac Was Fac Low Low Zio Pro Fac Upp Upp War Pro Fac Was Fac Upp Upp Zhi Pro Res Arm Lab Res Qua Traps Triggered 21 | . 6 . 1 . . . . 2 . . . . . . 5 . 1 . . . . 2 . . . . 3 . . . . . . . . . . 1 Indirectly . | . . . . . . . . . . . . . . . . . . . . . . . . . . . . . . . . . . . . . . . Trap Hack Attempts . | . . . . . . . . . . . . . . . . . . . . . . . . . . . . . . . . . . . . . . . Triggered . | . . . . . . . . . . . . . . . . . . . . . . . . . . . . . . . . . . . . . . . Disarmed . | . . . . . . . . . . . . . . . . . . . . . . . . . . . . . . . . . . . . . . . Reprogrammed . | . . . . . . . . . . . . . . . . . . . . . . . . . . . . . . . . . . . . . . . Reused 2 | . . . . . . . . . . . . . . . . . . . . . 2 . . . . . . . . . . . . . . . . . Traps Extracted . | . . . . . . . . . . . . . . . . . . . . . . . . . . . . . . . . . . . . . . . Installed 4 | . . . . . . . . . . . . . . . . . . . . . 4 . . . . . . . . . . . . . . . . . Triggered 15 | . . . . . . . . . . . 1 . . . . . . . 2 . 2 2 . . 8 . . . . . . . . . . . . . Machines | -11 -10 -10 -9 -9 -9 -8 -8 -7 -7 -7 -7 -7 -7 -6 -6 -6 -6 -6 -6 -6 -5 -5 -5 -5 -5 -4 -4 -4 -4 -4 -4 -4 -3 -3 -3 -3 -2 -2 ---------- Run | Jun Mat Min Mat Min Exi Min Mat Fac Was Fac Low Low Dat Pro Fac Was Fac Low Low Zio Pro Fac Upp Upp War Pro Fac Was Fac Upp Upp Zhi Pro Res Arm Lab Res Qua Machines Disabled 31 | . 1 . 2 . . . . . . . 1 . . . 1 . . . . . . . . . . . 1 . 1 . . . . 1 8 6 4 5 Max in Single Turn 3 | . 1 . 1 . . . . . . . 1 . . . 1 . . . . . . . . . . . 1 . 1 . . . . 1 1 3 1 2 Garrison Access 14 | . . . . . . . . 1 . 2 . . . . . . 1 . . . . 2 . . . . 2 . 3 . . . . . . . 2 1 Machines Repaired . | . . . . . . . . . . . . . . . . . . . . . . . . . . . . . . . . . . . . . . . Machines Sabotaged . | . . . . . . . . . . . . . . . . . . . . . . . . . . . . . . . . . . . . . . . Overloaded Fab Kills 1 | . . . . . . . . . . . . . . . 1 . . . . . . . . . . . . . . . . . . . . . . . Hacking | -11 -10 -10 -9 -9 -9 -8 -8 -7 -7 -7 -7 -7 -7 -6 -6 -6 -6 -6 -6 -6 -5 -5 -5 -5 -5 -4 -4 -4 -4 -4 -4 -4 -3 -3 -3 -3 -2 -2 --------- Run | Jun Mat Min Mat Min Exi Min Mat Fac Was Fac Low Low Dat Pro Fac Was Fac Low Low Zio Pro Fac Upp Upp War Pro Fac Was Fac Upp Upp Zhi Pro Res Arm Lab Res Qua Machines Accessed 132 | . 5 . 4 . 1 . 4 8 . 13 2 . 3 . 11 . 10 1 1 . 1 15 1 . 1 . 9 . 7 . 2 4 . 12 4 2 3 8 Terminals 70 | . 4 . 4 . . . 3 4 . 5 . . . . 6 . 8 . . . 1 8 . . . . 4 . 3 . 1 . . 10 2 . 1 6 Fabricators 19 | . . . . . . . . 2 . 4 . . . . 3 . 1 . . . . 3 . . . . 3 . 1 . . . . . 2 . . . Repair Stations 4 | . . . . . . . 1 . . 1 . . . . . . . . . . . . . . . . . . . . . . . 2 . . . . Recycling Units 2 | . 1 . . . . . . . . . . . . . 1 . . . . . . . . . . . . . . . . . . . . . . . Scanalyzers 4 | . . . . . . . . . . 1 . . . . . . . . . . . 2 . . . . . . . . . . . . . . . 1 Garrison Access 16 | . . . . . . . . 2 . 2 . . . . 1 . 1 . . . . 2 . . . . 2 . 3 . . . . . . . 2 1 Total Hacks 414 | . 14 . 7 . 1 . 12 19 . 40 5 . 24 . 36 . 28 1 1 . 1 40 1 . 1 . 31 . 18 . 2 17 . 28 13 20 4 50 Successful 241 | . 4 . 4 . 1 . 11 11 . 27 5 . 24 . 11 . 8 1 1 . 1 22 1 . 1 . 14 . 8 . 2 17 . 13 8 20 2 24 Failed 173 | . 10 . 3 . . . 1 8 . 13 . . . . 25 . 20 . . . . 18 . . . . 17 . 10 . . . . 15 5 . 2 26 Catastrophic 39 | . . . . . . . 1 2 . 3 . . . . 4 . 7 . . . . 5 . . . . 3 . 4 . . . . 3 1 . 1 5 Database Lockouts . | . . . . . . . . . . . . . . . . . . . . . . . . . . . . . . . . . . . . . . . Manual 105 | . 8 . 2 . . . 4 6 . 8 . . . . 14 . 13 . . 1 . 12 . . 2 . 10 . 6 . . . . 10 4 1 2 2 Terminals 191 | . 12 . 7 . . . 8 9 . 16 . . . . 16 . 20 . . . 1 18 . . . . 13 . 6 . 1 . . 22 7 . 2 33 Fabricators 66 | . . . . . . . . 4 . 9 . . . . 14 . 4 . . . . 12 . . . . 12 . 5 . . . . . 6 . . . Repair Stations 12 | . . . . . . . 4 . . 2 . . . . . . . . . . . . . . . . . . . . . . . 6 . . . . Recycling Units 6 | . 2 . . . . . . . . . . . . . 4 . . . . . . . . . . . . . . . . . . . . . . . Scanalyzers 33 | . . . . . . . . . . 11 . . . . . . . . . . . 7 . . . . . . . . . . . . . . . 15 Garrison Access 34 | . . . . . . . . 6 . 2 . . . . 2 . 4 . . . . 3 . . . . 6 . 7 . . . . . . . 2 2 Terminal Hacks 133 | . 2 . 3 . 1 . 5 4 . 7 5 . 24 . 3 . 2 1 1 . 1 6 1 . 1 . 2 . 2 . 2 17 . 7 3 20 . 13 Record 40 | . . . . . 1 . . . . . 4 . 6 . . . . . . . 1 . . . . . . . . . 1 5 . . . 20 . 2 Part Schematic 19 | . 1 . . . . . 1 1 . 1 . . 10 . . . . . . . . . . . . . . . . . . 4 . 1 . . . . Robot Schematic 6 | . . . . . . . . . . . . . 5 . . . . . . . . . . . . . . . . . . . . . . . . 1 Robot Analysis 5 | . . . 1 . . . . . . . . . . . . . . . . . . . . . . . . . . . . 4 . . . . . . Prototype ID Bank 12 | . 1 . . . . . . . . . . . 3 . 1 . 1 . . . . . . . . . 1 . . . . 4 . 1 . . . . Open Door 6 | . . . . . . . . . . . 1 . . . . . . 1 1 . . . 1 . 1 . . . . . 1 . . . . . . . Level Access Points 3 | . . . . . . . 1 . . 1 . . . . . . . . . . . . . . . . . . . . . . . . 1 . . . Branch Access Points 4 | . . . . . . . . . . 1 . . . . . . 1 . . . . . . . . . . . 1 . . . . 1 . . . . Emergency Access Points 1 | . . . . . . . . 1 . . . . . . . . . . . . . . . . . . . . . . . . . . . . . . Machine Index 2 | . . . . . . . . . . . . . . . . . . . . . . 1 . . . . . . . . . . . . 1 . . . Terminal Index 5 | . . . . . . . 1 . . 1 . . . . . . . . . . . . . . . . . . 1 . . . . 1 . . . 1 Fabricator Index 2 | . . . . . . . . . . 1 . . . . . . . . . . . . . . . . . . . . . . . . . . . 1 Garrison Index 1 | . . . . . . . . . . . . . . . . . . . . . . 1 . . . . . . . . . . . . . . . . Alert Level 5 | . . . . . . . . . . 2 . . . . 1 . . . . . . . . . . . . . . . . . . . 1 . . 1 Unreport Threat 2 | . . . . . . . . . . . . . . . . . . . . . . . . . . . . . . . . . . . . . . 2 Locate Traps 3 | . . . . . . . . 1 . . . . . . 1 . . . . . . . . . . . . . . . . . . 1 . . . . Recall Investigation 1 | . . . . . . . . . . . . . . . . . . . . . . . . . . . 1 . . . . . . . . . . . Recall Extermination 4 | . . . . . . . . . . . . . . . . . . . . . . 3 . . . . . . . . . . . 1 . . . . Hauler Manifests 3 | . . . . . . . . 1 . . . . . . . . . . . . . 1 . . . . . . . . . . . . . . . 1 Registered Components 1 | . . . . . . . . . . . . . . . . . . . . . . . . . . . . . . . . . . . . . . 1 Registered Prototypes 1 | . . . . . . . . . . . . . . . . . . . . . . . . . . . . . . . . . . . . . . 1 Zone Layout 7 | . . . 2 . . . 2 . . . . . . . . . . . . . . . . . . . . . . . . . . 1 . . . 2 Fabricator Hacks 27 | . . . . . . . . 2 . 4 . . . . 3 . 1 . . . . 6 . . . . 6 . 2 . . . . . 3 . . . Network Status 1 | . . . . . . . . 1 . . . . . . . . . . . . . . . . . . . . . . . . . . . . . . Load Schematic 12 | . . . . . . . . . . 2 . . . . 1 . 1 . . . . 3 . . . . 3 . 1 . . . . . 1 . . . Build 14 | . . . . . . . . 1 . 2 . . . . 2 . . . . . . 3 . . . . 3 . 1 . . . . . 2 . . . Repair Station Hacks 11 | . . . . . . . 4 . . 2 . . . . . . . . . . . . . . . . . . . . . . . 5 . . . . Scan Component 6 | . . . . . . . 2 . . 1 . . . . . . . . . . . . . . . . . . . . . . . 3 . . . . Repair 5 | . . . . . . . 2 . . 1 . . . . . . . . . . . . . . . . . . . . . . . 2 . . . . Recycling Unit Hacks 4 | . 1 . . . . . . . . . . . . . 3 . . . . . . . . . . . . . . . . . . . . . . . Retrieve Components 4 | . 1 . . . . . . . . . . . . . 3 . . . . . . . . . . . . . . . . . . . . . . . Scanalyzer 22 | . . . . . . . . . . 9 . . . . . . . . . . . 5 . . . . . . . . . . . . . . . 8 Insert Component 11 | . . . . . . . . . . 3 . . . . . . . . . . . 4 . . . . . . . . . . . . . . . 4 Analyze 11 | . . . . . . . . . . 6 . . . . . . . . . . . 1 . . . . . . . . . . . . . . . 4 Garrison Access Hacks 14 | . . . . . . . . 1 . 2 . . . . . . 1 . . . . 2 . . . . 2 . 3 . . . . . . . 2 1 Seal Access 14 | . . . . . . . . 1 . 2 . . . . . . 1 . . . . 2 . . . . 2 . 3 . . . . . . . 2 1 Unauthorized Hacks 30 | . 1 . 1 . . . 2 4 . 3 . . . . 2 . 4 . . . . 3 . . . . 4 . 1 . . . . 1 2 . . 2 Terminals 19 | . 1 . 1 . . . 2 2 . 3 . . . . . . 4 . . . . . . . . . 2 . . . . . . 1 1 . . 2 Track 3 | . . . . . . . . . . 1 . . . . . . . . . . . . . . . . 1 . . . . . . . . . . 1 Assimilate 2 | . . . . . . . . . . 1 . . . . . . . . . . . . . . . . . . . . . . . . 1 . . . Botnet 12 | . 1 . . . . . 2 1 . 1 . . . . . . 4 . . . . . . . . . 1 . . . . . . 1 . . . 1 Operators 2 | . . . 1 . . . . 1 . . . . . . . . . . . . . . . . . . . . . . . . . . . . . . Fabricators 11 | . . . . . . . . 2 . . . . . . 2 . . . . . . 3 . . . . 2 . 1 . . . . . 1 . . . Prioritize 7 | . . . . . . . . 1 . . . . . . . . . . . . . 3 . . . . 2 . 1 . . . . . . . . . Liberate 3 | . . . . . . . . 1 . . . . . . 1 . . . . . . . . . . . . . . . . . . . 1 . . . Overload 1 | . . . . . . . . . . . . . . . 1 . . . . . . . . . . . . . . . . . . . . . . . Repair Stations . | . . . . . . . . . . . . . . . . . . . . . . . . . . . . . . . . . . . . . . . Recycling Units . | . . . . . . . . . . . . . . . . . . . . . . . . . . . . . . . . . . . . . . . Scanalyzers . | . . . . . . . . . . . . . . . . . . . . . . . . . . . . . . . . . . . . . . . Garrison Access . | . . . . . . . . . . . . . . . . . . . . . . . . . . . . . . . . . . . . . . . Data Cores Recovered 5 | . . . . . . . . 1 . . . . . . . . . . . . . 2 . . . . . . 1 . . . . . . . . 1 Used 3 | . . . . . . . . 1 . . . . . . . . . . . . . 2 . . . . . . . . . . . . . . . . Hacking Detections 79 | . 3 . 3 . . . 2 4 . 7 . . . . 7 . 9 . . . . 12 . . . . 8 . 5 . . . . 10 4 . 1 4 Full Trace Events 18 | . 1 . . . . . . 1 . 1 . . . . 1 . 3 . . . . 4 . . . . 3 . 1 . . . . 2 1 . . . Feedback Events . | . . . . . . . . . . . . . . . . . . . . . . . . . . . . . . . . . . . . . . . Feedback Blocked . | . . . . . . . . . . . . . . . . . . . . . . . . . . . . . . . . . . . . . . . Robot Schematics Acquired 8 | . . . . . . . . . . . . . 5 . . . . . . 2 . . . . . . . . . . . . . . . . . 1 Robots Built 12 | . . . . . . . . 4 . . . . . . 3 . . . . . . . . . . . . . . . . . . . 5 . . . Authchips . | . . . . . . . . . . . . . . . . . . . . . . . . . . . . . . . . . . . . . . . Time 409 | . . . . . . . . 134 . . . . . . 152 . . . . . . . . . . . . . . . . . . . 123 . . . Total Robot Build Rating 57 | . . . . . . . . 16 . . . . . . 15 . . . . . . . . . . . . . . . . . . . 26 . . . Part Schematics Acquired 38 | . 1 . . . . . 1 1 . 4 . . 10 . . . . . . 14 . 1 . . . . . . . . . 4 . 1 . . . 1 Parts Built 10 | . . . . . . . . . . 2 . . . . 1 . . . . . . 3 . . . . 3 . 1 . . . . . . . . . Authchips . | . . . . . . . . . . . . . . . . . . . . . . . . . . . . . . . . . . . . . . . Time 690 | . . . . . . . . . . 105 . . . . 152 . . . . . . 190 . . . . 167 . 76 . . . . . . . . . Total Part Build Rating 53 | . . . . . . . . . . 12 . . . . 5 . . . . . . 15 . . . . 16 . 5 . . . . . . . . . Parts Repaired 5 | . . . . . . . 2 . . 1 . . . . . . . . . . . . . . . . . . . . . . . 2 . . . . Time 213 | . . . . . . . 102 . . 31 . . . . . . . . . . . . . . . . . . . . . . . 80 . . . . Parts Recycled . | . . . . . . . . . . . . . . . . . . . . . . . . . . . . . . . . . . . . . . . Recycled Matter . | . . . . . . . . . . . . . . . . . . . . . . . . . . . . . . . . . . . . . . . Retrieved Matter . | . . . . . . . . . . . . . . . . . . . . . . . . . . . . . . . . . . . . . . . Retrieved Components 6 | . 5 . . . . . . . . . . . . . 1 . . . . . . . . . . . . . . . . . . . . . . . Parts Scanalyzed 6 | . . . . . . . . . . 3 . . . . . . . . . . . 2 . . . . . . . . . . . . . . . 1 Part Schematics Acquired 5 | . . . . . . . . . . 3 . . . . . . . . . . . 1 . . . . . . . . . . . . . . . 1 Parts Damaged . | . . . . . . . . . . . . . . . . . . . . . . . . . . . . . . . . . . . . . . . Bothacking | -11 -10 -10 -9 -9 -9 -8 -8 -7 -7 -7 -7 -7 -7 -6 -6 -6 -6 -6 -6 -6 -5 -5 -5 -5 -5 -4 -4 -4 -4 -4 -4 -4 -3 -3 -3 -3 -2 -2 ------------ Run | Jun Mat Min Mat Min Exi Min Mat Fac Was Fac Low Low Dat Pro Fac Was Fac Low Low Zio Pro Fac Upp Upp War Pro Fac Was Fac Upp Upp Zhi Pro Res Arm Lab Res Qua Used RIF Installer . | . . . . . . . . . . . . . . . . . . . . . . . . . . . . . . . . . . . . . . . Robots Hacked . | . . . . . . . . . . . . . . . . . . . . . . . . . . . . . . . . . . . . . . . Non-combat . | . . . . . . . . . . . . . . . . . . . . . . . . . . . . . . . . . . . . . . . Combat . | . . . . . . . . . . . . . . . . . . . . . . . . . . . . . . . . . . . . . . . Robot Hacks Applied . | . . . . . . . . . . . . . . . . . . . . . . . . . . . . . . . . . . . . . . . Relay Couplers Released 7 | . . . . . . . . . . . . . . . . . . . . . . . . . . . . . . . . . . . . . 6 1 Machine Destruction 3 | . . . . . . . . . . . . . . . . . . . . . . . . . . . . . . . . . . . . . 2 1 Programmers 4 | . . . . . . . . . . . . . . . . . . . . . . . . . . . . . . . . . . . . . 4 . Fabnet Peak Effective % . | . . . . . . . . . . . . . . . . . . . . . . . . . . . . . . . . . . . . . . . Robots Rewired 9 | . . . . . . . . 2 . . . . . . . . . . . . . . . . . . . . . . . . . . 7 . . . Allies Hacked . | . . . . . . . . . . . . . . . . . . . . . . . . . . . . . . . . . . . . . . . Hacks Repelled . | . . . . . . . . . . . . . . . . . . . . . . . . . . . . . . . . . . . . . . . Allies | -11 -10 -10 -9 -9 -9 -8 -8 -7 -7 -7 -7 -7 -7 -6 -6 -6 -6 -6 -6 -6 -5 -5 -5 -5 -5 -4 -4 -4 -4 -4 -4 -4 -3 -3 -3 -3 -2 -2 -------- Run | Jun Mat Min Mat Min Exi Min Mat Fac Was Fac Low Low Dat Pro Fac Was Fac Low Low Zio Pro Fac Upp Upp War Pro Fac Was Fac Upp Upp Zhi Pro Res Arm Lab Res Qua Total Allies 108 | . . 2 . 3 . . . 6 19 . . . . 1 6 18 3 . . 2 . . . . . . . 19 . . . . . . 13 . 16 . Largest Group 19 | . . 2 . 3 3 3 . 4 19 9 . . . 1 3 18 9 . . 2 2 . . . . . . 19 15 . . . . . 9 . 16 . Highest-Rated Group 686 | . . 39 . 40 40 40 . 48 475 279 . . . 96 87 638 367 . . 192 192 . . . . . . 686 581 . . . . . 389 . 221 . Highest-Rated Ally 96 | . . 31 . 16 16 16 . 25 35 35 . . . 96 29 50 50 . . 96 96 . . . . . . 50 50 . . . . . 65 . 15 . Total Orders 1 | . . . . . . . . . 1 . . . . . . . . . . . . . . . . . . . . . . . . . . . . . RETURN 1 | . . . . . . . . . 1 . . . . . . . . . . . . . . . . . . . . . . . . . . . . . Ally Attacks 863 | . . 4 . . . 19 . 44 154 45 . . . 6 54 106 64 . . . 18 . . . . . . 114 102 . . . . . 71 . 62 . Total Damage 27567 | . . 42 . . . 179 . 509 5738 893 . . . 233 700 5928 2302 . . . 416 . . . . . . 3013 3892 . . . . . 2584 . 1138 . Kills 118 | . . 1 . . . 2 . 3 13 12 . . . 1 4 13 18 . . . 5 . . . . . . 8 26 . . . . . 10 . 2 . Allies Corrupted 2 | . . . . . . . . . . . . . . . . . . . . . . . . . . . . . . . . . . . . . 2 . Allies Melted 6 | . . . . . . . . . . . . 1 . . 1 . . . . . . . . . 1 . . . 1 . . . . . . . 2 . Intel | -11 -10 -10 -9 -9 -9 -8 -8 -7 -7 -7 -7 -7 -7 -6 -6 -6 -6 -6 -6 -6 -5 -5 -5 -5 -5 -4 -4 -4 -4 -4 -4 -4 -3 -3 -3 -3 -2 -2 ------- Run | Jun Mat Min Mat Min Exi Min Mat Fac Was Fac Low Low Dat Pro Fac Was Fac Low Low Zio Pro Fac Upp Upp War Pro Fac Was Fac Upp Upp Zhi Pro Res Arm Lab Res Qua Robot Analysis Total 5 | . . . 1 . . . . . . . . . . . . . . . . . . . . . . . . . . . . 4 . . . . . . Derelict Logs Recovered 18 | . . 2 . 1 . . . . . . 2 1 . 1 . . . 1 1 1 3 . 1 . . 2 . . . 1 1 . . . . . . . Drone Launches 3 | . . . . . . . . . 3 . . . . . . . . . . . . . . . . . . . . . . . . . . . . . Drone Recoveries 3 | . . . . . . . . . 3 . . . . . . . . . . . . . . . . . . . . . . . . . . . . . Exploration | -11 -10 -10 -9 -9 -9 -8 -8 -7 -7 -7 -7 -7 -7 -6 -6 -6 -6 -6 -6 -6 -5 -5 -5 -5 -5 -4 -4 -4 -4 -4 -4 -4 -3 -3 -3 -3 -2 -2 ------------- Run | Jun Mat Min Mat Min Exi Min Mat Fac Was Fac Low Low Dat Pro Fac Was Fac Low Low Zio Pro Fac Upp Upp War Pro Fac Was Fac Upp Upp Zhi Pro Res Arm Lab Res Qua Turns Passed 20636 | 172 2533 1362 289 280 207 220 342 497 585 563 397 298 23 441 910 492 577 195 278 705 203 1107 219 424 1028 394 860 291 812 135 163 74 267 682 521 288 1353 449 Spaces Moved 31783 | 80 1007 748 509 586 452 620 492 1091 620 1377 1044 637 78 906 1330 428 1188 513 727 1341 490 2152 489 442 1237 772 1628 412 1274 403 522 173 341 1212 704 394 2596 768 Core 572 | 3 1 330 . . . . . . . . . . . . . . . . . . . . . 1 . . . . . . . . . 2 2 . 67 166 Treads 1432 | 77 1006 349 . . . . . . . . . . . . . . . . . . . . . . . . . . . . . . . . . . . . Legs 57 | . . . . . . . . . . . . . . . . . . . . . . . . . . . . . . . . . . . . . 57 . Wheels 104 | . . 69 35 . . . . . . . . . . . . . . . . . . . . . . . . . . . . . . . . . . . Hover 22 | . . . . . . . . . . . . . . . . . . . . . . . . . . . . . . . . . . . . . . 22 Flight 29596 | . . . 474 586 452 620 492 1091 620 1377 1044 637 78 906 1330 428 1188 513 727 1341 490 2152 489 441 1237 772 1628 412 1274 403 522 173 341 1210 702 394 2472 580 Fastest Speed 17 | 50 160 50 34 34 34 34 34 34 30 29 29 29 29 29 30 28 35 35 35 35 34 34 39 33 28 28 26 26 17 23 23 23 23 21 32 32 19 28 Average Speed 41 | 155 225 176 37 34 34 34 34 34 32 29 29 29 29 29 37 31 35 35 35 35 34 36 39 39 31 28 27 26 23 23 23 23 24 25 32 32 33 41 Slowest Speed 1500 | 160 1500 320 110 34 34 34 34 34 114 94 29 94 29 32 106 95 35 110 35 35 39 39 39 350 90 90 90 26 26 23 95 95 102 195 200 32 550 180 Overloaded Moves 13 | . . . . . . . . . . . . . . . . . . . . . . . . . . . . . 13 . . . . . . . . . Propulsion Burnouts . | . . . . . . . . . . . . . . . . . . . . . . . . . . . . . . . . . . . . . . . Robots Hopped 90 | . . . 2 7 . 6 7 10 . 6 . . . 1 9 . 6 . 2 . 2 . . 1 1 . 4 . 7 1 2 . . 4 . . 11 1 Cave-ins Triggered . | . . . . . . . . . . . . . . . . . . . . . . . . . . . . . . . . . . . . . . . Teleports 3 | . . . . . . . . . . . . . . . . . . . . . . . . . . . . . . . . . . . 1 . 1 1 Exploration Rate (%) 66 | 5 98 101 58 99 89 98 51 32 96 40 90 68 69 85 29 97 36 65 89 86 64 47 55 44 90 97 41 97 33 58 79 62 56 39 48 100 56 60 Regions Visited 38 Branch Regions 23 Pre-discovered Areas 10 | . . 2 . . 1 . . . . . 1 . 1 . . . . . . . 1 . . . . . . . . 1 . 3 . . . . . . Known Exits Taken 24 | . . . . . . . 1 . . 1 1 1 1 1 . . 1 1 1 1 1 1 1 1 1 1 . . 1 1 1 1 1 1 1 1 . . Unknown Exits Taken 8 | 1 1 1 1 1 1 1 . . . . . . . . . . . . . . . . . . . . . . . . . . . . . . 1 . Scrap Searched 40 | . . 1 . 2 . 1 . . . . 2 2 . 1 . . . 5 2 4 4 . 3 3 . 2 . . . 2 3 . 3 . . . . . Spaces Dug 367 | . . 2 5 1 1 . 5 15 . 12 4 24 . 2 27 1 29 . 19 1 1 38 2 25 1 28 39 2 24 . . . . 26 11 2 14 6 Terrain Destroyed 1289 | . . 6 5 1 1 . 5 32 . 12 4 59 . 2 56 1 50 23 74 1 1 38 100 25 1 152 39 2 113 . 81 . 58 48 11 35 148 105 Melee 243 | . . 2 5 1 1 . 5 15 . 12 4 4 . 2 8 1 12 . . 1 1 38 2 . 1 4 39 2 24 . . . . 26 11 2 14 6 Projectile 13 | . . . . . . . . . . . . . . . . . . . . . . . 2 . . 4 . . . . 1 . 1 . . . 3 2 AOE 1033 | . . 4 . . . . . 17 . . . 55 . . 48 . 38 23 74 . . . 96 25 . 144 . . 89 . 80 . 57 22 . 33 131 97 Terrain Rammed . | . . . . . . . . . . . . . . . . . . . . . . . . . . . . . . . . . . . . . . . Walls Destroyed . | . . . . . . . . . . . . . . . . . . . . . . . . . . . . . . . . . . . . . . . Machines Disabled . | . . . . . . . . . . . . . . . . . . . . . . . . . . . . . . . . . . . . . . . Actions | -11 -10 -10 -9 -9 -9 -8 -8 -7 -7 -7 -7 -7 -7 -6 -6 -6 -6 -6 -6 -6 -5 -5 -5 -5 -5 -4 -4 -4 -4 -4 -4 -4 -3 -3 -3 -3 -2 -2 --------- Run | Jun Mat Min Mat Min Exi Min Mat Fac Was Fac Low Low Dat Pro Fac Was Fac Low Low Zio Pro Fac Upp Upp War Pro Fac Was Fac Upp Upp Zhi Pro Res Arm Lab Res Qua Total 37935 | 104 1147 776 569 657 503 622 637 1156 991 1489 1123 737 77 1074 1698 786 1288 521 740 1573 514 2380 502 691 1882 920 1929 592 1730 442 556 198 519 1524 961 510 2955 862 Wait 4494 | . 19 . 10 75 51 7 121 6 330 74 73 86 . 168 333 319 47 . . 204 12 104 . 243 584 123 183 170 400 36 21 . 166 222 188 38 60 21 Move 31579 | 79 1006 747 504 571 451 608 477 1071 619 1365 1043 636 77 903 1312 427 1178 512 722 1340 486 2151 488 439 1234 771 1620 411 1260 400 517 172 340 1203 703 393 2577 766 Hop 79 | . . . 2 7 . 5 7 10 . 5 . . . 1 9 . 3 . 2 . 1 . . 1 1 . 4 . 6 1 2 . . 4 . . 7 1 Pick Up 124 | 6 20 4 6 1 . . 4 1 3 3 . 1 . . 2 6 7 2 2 4 1 4 . 1 15 1 4 2 4 . . 1 . 8 1 5 3 2 Fast Attach 300 | 7 14 6 6 . . 1 3 10 8 5 . . . . 15 9 7 . . 8 2 5 . . 11 1 11 1 2 1 4 8 2 9 1 18 96 29 Attach 69 | . 1 1 2 . . . 2 1 1 . . 2 . . 3 3 . . 1 1 . 2 . 3 7 2 4 1 3 1 2 2 2 4 1 3 8 6 Detach 72 | . 3 . 3 . . . . . 1 1 . 2 . . 4 5 2 . . 5 . 2 . 1 6 1 1 1 4 1 2 2 1 5 . 3 11 5 Swap 108 | 1 6 2 1 . . . 3 10 5 6 . 1 . . . . 1 3 2 3 1 3 4 . 2 2 5 2 9 2 . . 3 9 2 1 15 4 Drop 313 | . 12 4 10 1 . 1 5 10 12 10 . 1 . . 2 15 12 2 4 6 3 10 . 1 21 1 16 2 9 . 3 8 2 20 2 18 79 11 Fire 224 | 11 66 8 4 . . . . 5 12 . . 4 . . 4 . 2 2 6 . . . 8 2 . 10 . . 4 . 5 . 3 2 . 4 54 8 Melee 469 | . . 4 21 2 1 . 15 27 . 20 7 4 . 2 14 2 29 . 1 2 4 63 2 . 1 8 63 2 29 . . 5 . 38 22 27 45 9 Ram . | . . . . . . . . . . . . . . . . . . . . . . . . . . . . . . . . . . . . . . . Kick . | . . . . . . . . . . . . . . . . . . . . . . . . . . . . . . . . . . . . . . . Crush . | . . . . . . . . . . . . . . . . . . . . . . . . . . . . . . . . . . . . . . . Escape Stasis 54 | . . . . . . . . . . . . . . . . . . . . . . 36 . . . . 18 . . . . . . . . . . . Rewire 46 | . . . . . . . . 5 . . . . . . . . . . . . . . . . . . . . . . . . . . 41 . . . Trap 4 | . . . . . . . . . . . . . . . . . . . . . 4 . . . . . . . . . . . . . . . . . Miscellaneous . | . . . . . . . . . . . . . . . . . . . . . . . . . . . . . . . . . . . . . . . Route ------- -11/Junkyard -10/Materials (discovered 5 exits: *Mat x3 / [*Min x2]) -10/Mines (discovered 2 exits: *Mat x2) -9/Materials (discovered 3 exits: [*Min] / [*Sto x2]) -9/Mines (discovered 3 exits: *Mat x2 / *Exi) -9/Exiles (discovered 2 exits: [*Min x2]) -8/Mines (discovered 2 exits: *Mat x2) -8/Materials (discovered 3 exits: *Fac x3) -7/Factory -7/Waste -7/Factory (discovered 6 exits: *Fac x4 / *Low x2) -7/Lower Caves -7/Lower Caves (discovered 2 exits: *Fac / *Dat) -7/Data Miner -6/Proximity Caves -6/Factory (discovered 3 exits: *Fac / *Low x2) -6/Waste -6/Factory (discovered 3 exits: *Fac / *Low x2) -6/Lower Caves -6/Lower Caves (discovered 2 exits: *Fac / *Zio) -6/Zion -5/Proximity Caves -5/Factory (discovered 5 exits: *Fac x2 / *Upp x2 / Ext) -5/Upper Caves -5/Upper Caves -5/Warlord -4/Proximity Caves -4/Factory (discovered 3 exits: *Res / *Upp x2) -4/Waste -4/Factory (discovered 4 exits: *Res x2 / *Upp x2) -4/Upper Caves -4/Upper Caves -4/Zhirov -3/Proximity Caves -3/Research (discovered 3 exits: *Arm / Tes x2) -3/Armory (discovered 3 exits: Res x2 / *Lab) -3/Lab -2/Research (discovered 3 exits: *Acc x2 / *Qua) -2/Quarantine History --------- Turn | Location | Event 54 | -11/Junkyard | Discovered new exit (range 16) 173 | -11/Junkyard | Entered Materials 201 | -10/Materials | Discovered new exit (range 15) 307 | -10/Materials | Build established: Mutant 867 | -10/Materials | Discovered new exit (range 11) 1089 | -10/Materials | Discovered new exit (range 9) 1188 | -10/Materials | Discovered new exit (range 11) 1338 | -10/Materials | Discovered new exit (range 14) 2706 | -10/Materials | Entered Mines 2729 | -10/Mines | Learned location of Zion (-6) 2914 | -10/Mines | A weapon hastily lodged in a ceiling crevice suddenly fell to the ground 3006 | -10/Mines | Learned location of Storage (-9) 3190 | -10/Mines | Discovered new exit (range 9) 3767 | -10/Mines | Assembled infested the area 3772 | -10/Mines | Assisted by a Guerilla fighting off Assembled 3829 | -10/Mines | Released all parts (4) 3849 | -10/Mines | Lost 9 parts (2n1u6w) 3898 | -10/Mines | Learned Materials stockpile data 3950 | -10/Mines | Discovered new exit (range 15) 4068 | -10/Mines | Entered Materials 4068 | -9/Materials | Evolved 2 slots: Propulsion x1, Utility x1 4206 | -9/Materials | Discovered new exit (range 15) 4266 | -9/Materials | Discovered new exit (range 9) 4279 | -9/Materials | Discovered new exit (range 17) 4357 | -9/Materials | Entered Mines 4359 | -9/Mines | Assisted by bots powering up and referring to "LRC-V3" 4385 | -9/Mines | Discovered new exit (range 8) 4398 | -9/Mines | Discovered new exit (range 5) 4458 | -9/Mines | Deemed a non-threat by the Exiles lab entrance 4458 | -9/Mines | Discovered new exit (range 5) 4511 | -9/Mines | Received a Rocket Launcher from a helpful Derelict 4637 | -9/Mines | Entered Exiles 4637 | -9/Exiles | Accompanied by 3 allies 4642 | -9/Exiles | Discovered new exit (range 15) 4646 | -9/Exiles | Met 8R-AWN 4651 | -9/Exiles | Met EX-HEX 4672 | -9/Exiles | Met EX-DEC 4677 | -9/Exiles | Visited The Gauntlet 4744 | -9/Exiles | Met EX-BIN 4791 | -9/Exiles | Discovered new exit (range 10) 4844 | -9/Exiles | Entered Mines 4844 | -8/Mines | Accompanied by 3 allies 4848 | -8/Mines | Discovered new exit (range 16) 4875 | -8/Mines | Discovered new exit (range 10) 5064 | -8/Mines | Entered Materials 5064 | -8/Materials | Evolved 2 slots: Utility x2 5179 | -8/Materials | Build established: Hacker-Mutant 5199 | -8/Materials | Identified exit to Factory 5261 | -8/Materials | Repaired Imp. Flight Unit 5313 | -8/Materials | Repaired Imp. Flight Unit 5406 | -8/Materials | Entered Factory 5406 | -7/Factory | Evolved 2 slots: Utility x2 5630 | -7/Factory | Lost 3 parts (1p2u) 5762 | -7/Factory | Fabricated S-27 Virus? 5903 | -7/Factory | Manually triggered Chute Trap 5903 | -7/Factory | Sucked down chute 5903 | -7/Factory | Entered Waste 5937 | -7/Waste | Spotted C-40 Crusher 5949 | -7/Waste | Spotted C-40 Crusher 5950 | -7/Waste | Spotted C-40 Crusher 5951 | -7/Waste | Spotted C-40 Crusher 5964 | -7/Waste | Warlord forces began an assault 5973 | -7/Waste | Allies destroyed C-40 Crusher 5981 | -7/Waste | Allies destroyed C-40 Crusher 5987 | -7/Waste | Allies destroyed C-40 Crusher 5987 | -7/Waste | Allies destroyed C-40 Crusher 5988 | -7/Waste | Spotted C-40 Crusher 6006 | -7/Waste | Allies destroyed C-40 Crusher 6043 | -7/Waste | Spotted C-40 Crusher 6058 | -7/Waste | Allies destroyed C-40 Crusher 6069 | -7/Waste | Found Prototype Launcher 6069 | -7/Waste | Identified Tesla Bomb Launcher 6410 | -7/Waste | Discovered new exit (range 11) 6434 | -7/Waste | Build established: Hacker-Sprinter 6441 | -7/Waste | Identified exit to Factory 6488 | -7/Waste | Entered Factory 6488 | -7/Factory | Accompanied by 9 allies 6593 | -7/Factory | Fabricated Adv. Reaction Control System? 6604 | -7/Factory | Fabricated Enh. Optical Array? 6805 | -7/Factory | Identified exit to Factory 6893 | -7/Factory | Repaired Force Lance 6939 | -7/Factory | Identified exit to Lower Caves 7051 | -7/Factory | Entered Lower Caves 7101 | -7/Lower Caves | Learned Research trap positions 7101 | -7/Lower Caves | Learned Factory terminal intel 7101 | -7/Lower Caves | Learned Armory terminal intel 7160 | -7/Lower Caves | Encountered a Warlord checkpoint 7312 | -7/Lower Caves | Learned Factory stockpile data 7316 | -7/Lower Caves | Discovered new exit (range 16) 7320 | -7/Lower Caves | Identified exit to Lower Caves 7448 | -7/Lower Caves | Entered another Lower Caves area 7452 | -7/Lower Caves | Spotted B-75 Beast 7473 | -7/Lower Caves | Discovered exit to Factory (range 3) 7513 | -7/Lower Caves | Attracted the attention of an 0b10 outpost 7650 | -7/Lower Caves | Encountered a Warlord checkpoint 7666 | -7/Lower Caves | Discovered new exit (range 11) 7672 | -7/Lower Caves | Identified exit to Data Miner 7746 | -7/Lower Caves | Entered Data Miner 7746 | -7/Data Miner | Discovered new exit (range 6) 7752 | -7/Data Miner | Met Data Miner 7758 | -7/Data Miner | Learned location of Section 7 (-2) 7758 | -7/Data Miner | Acquired the access code to Warlord's prototype stash 7762 | -7/Data Miner | Received God Mode back door access code from Data Miner 7769 | -7/Data Miner | Identified exit to Proximity Caves 7769 | -7/Data Miner | Entered Proximity Caves 7913 | -6/Proximity Caves | Spotted B-75 Beast 7955 | -6/Proximity Caves | Attracted the attention of an 0b10 checkpoint 8198 | -6/Proximity Caves | Discovered exit to Factory (range 7) 8210 | -6/Proximity Caves | Entered Factory 8210 | -6/Factory | Evolved 2 slots: Propulsion x1, Utility x1 8211 | -6/Factory | Identified exit to Lower Caves 8213 | -6/Factory | Loaded intel: 26 terminal locations 8343 | -6/Factory | Discovered new exit (range 13) 8355 | -6/Factory | Identified exit to Factory 8482 | -6/Factory | Fabricated G-50 Soldier? 8818 | -6/Factory | Incoming investigation squad redirected 8949 | -6/Factory | Fabricated Biomechanical Wings? 9016 | -6/Factory | Incoming investigation squad redirected 9024 | -6/Factory | Discovered exit to Lower Caves (range 8) 9120 | -6/Factory | Sucked down chute 9120 | -6/Factory | Entered Waste 9123 | -6/Waste | Spotted C-40 Crusher 9123 | -6/Waste | Spotted C-40 Crusher 9129 | -6/Waste | Spotted C-40 Crusher 9129 | -6/Waste | Spotted C-40 Crusher 9144 | -6/Waste | Warlord forces began an assault 9167 | -6/Waste | Allies destroyed C-40 Crusher 9174 | -6/Waste | Allies destroyed C-40 Crusher 9174 | -6/Waste | Allies destroyed C-40 Crusher 9180 | -6/Waste | Allies destroyed C-40 Crusher 9224 | -6/Waste | Spotted C-40 Crusher 9258 | -6/Waste | Spotted C-40 Crusher 9272 | -6/Waste | Allies destroyed C-40 Crusher 9381 | -6/Waste | Found Broken Gamma Bomb Array 9515 | -6/Waste | Discovered new exit (range 14) 9530 | -6/Waste | Identified exit to Factory 9612 | -6/Waste | Entered Factory 9612 | -6/Factory | Accompanied by 9 allies 9776 | -6/Factory | Discovered exit to Factory (range 18) 9802 | -6/Factory | Build established: Hacker-Gladiator 10189 | -6/Factory | Entered Lower Caves 10202 | -6/Lower Caves | Identified exit to Lower Caves 10325 | -6/Lower Caves | Encountered a Warlord checkpoint 10384 | -6/Lower Caves | Entered another Lower Caves area 10408 | -6/Lower Caves | Discovered exit to Factory (range 19) 10438 | -6/Lower Caves | Build established: Hacker-Mutant 10573 | -6/Lower Caves | Learned Factory security intel 10574 | -6/Lower Caves | Attracted the attention of an 0b10 outpost 10590 | -6/Lower Caves | Found Prototype Device 10605 | -6/Lower Caves | Encountered a Warlord checkpoint 10634 | -6/Lower Caves | Discovered new exit (range 16) 10658 | -6/Lower Caves | Identified exit to Zion 10662 | -6/Lower Caves | Entered Zion 10668 | -6/Zion | Given the Hacking Drone Bay 10680 | -6/Zion | Given A8's code to call for help 10692 | -6/Zion | Discovered new exit (range 11) 10697 | -6/Zion | Identified exit to Proximity Caves 10729 | -6/Zion | Received a hallucinogenic algorithm 10761 | -6/Zion | Acquired unknown access codes intercepted by a Zionite 10831 | -6/Zion | Learned Factory interactive machine intel 11007 | -6/Zion | Found Prototype Hackware 11007 | -6/Zion | Identified Exp. System Shield 11013 | -6/Zion | Found Prototype Processor 11013 | -6/Zion | Identified Exp. Melee Analysis Suite 11020 | -6/Zion | Found Prototype Processor 11068 | -6/Zion | Found CR-A16's Pointy Stick 11083 | -6/Zion | Found Prototype Processor 11088 | -6/Zion | Identified Spectral Analyzer 11093 | -6/Zion | Found Spectral Analyzer 11098 | -6/Zion | Found Prototype Processor 11098 | -6/Zion | Identified Exp. Signal Interpreter 11142 | -6/Zion | Enhanced Grunt warped into view, answering call for help 11144 | -6/Zion | Enhanced Grunt warped into view, answering call for help 11367 | -6/Zion | Entered Proximity Caves 11367 | -5/Proximity Caves | Accompanied by 2 allies 11372 | -5/Proximity Caves | Learned location of Armory (-3) 11373 | -5/Proximity Caves | Learned Factory terminal intel 11446 | -5/Proximity Caves | Attracted the attention of an 0b10 checkpoint 11486 | -5/Proximity Caves | Learned 4 Factory zone layouts 11526 | -5/Proximity Caves | Discovered exit to Factory (range 18) 11563 | -5/Proximity Caves | Core integrity fell below 50% 11570 | -5/Proximity Caves | Entered Factory 11570 | -5/Factory | Evolved 2 slots: Utility x2 11571 | -5/Factory | Identified exit to Extension 11574 | -5/Factory | Loaded intel: 54 interactive machine locations 11575 | -5/Factory | Loaded intel: 28 terminal locations 11581 | -5/Factory | Discovered new exit (range 4) 11581 | -5/Factory | Identified exit to Upper Caves 11617 | -5/Factory | Discovered exit to Upper Caves (range 23) 11655 | -5/Factory | Incoming investigation squad redirected 11670 | -5/Factory | Fabricated Lgt. Regenerative Plating (x1) 11740 | -5/Factory | Fabricated Biomechanical Wings? 11765 | -5/Factory | Fabricated Biomechanical Wings? 11798 | -5/Factory | Spotted B-75 Beast 11954 | -5/Factory | Discovered new exit (range 9) 12397 | -5/Factory | Discovered new exit (range 17) 12414 | -5/Factory | Identified exit to Factory 12496 | -5/Factory | Identified Heart of Steel 12496 | -5/Factory | Identified Exp. Core Analyzer 12517 | -5/Factory | Build established: Hacker-Scout 12657 | -5/Factory | Cargo convoy interrupted 12677 | -5/Factory | Entered Upper Caves 12803 | -5/Upper Caves | Learned location of 1 exit from Factory 12832 | -5/Upper Caves | Discovered new exit (range 6) 12836 | -5/Upper Caves | Identified exit to Upper Caves 12896 | -5/Upper Caves | Entered another Upper Caves area 12898 | -5/Upper Caves | Spotted B-75 Beast 13292 | -5/Upper Caves | Discovered new exit (range 12) 13296 | -5/Upper Caves | Identified exit to Warlord 13320 | -5/Upper Caves | Entered Warlord 13504 | -5/Warlord | Met Warlord 13507 | -5/Warlord | Opened Warlord's prototype stash 13517 | -5/Warlord | Found Prototype Reactor 13520 | -5/Warlord | Found Prototype Device 13521 | -5/Warlord | Found Prototype Processor 13521 | -5/Warlord | Identified Exp. Armor Integrity Analyzer 13529 | -5/Warlord | Warlord's base attacked by MAIN.C 13588 | -5/Warlord | Found Prototype Special Weapon 13589 | -5/Warlord | Found Prototype Special Weapon 13591 | -5/Warlord | Found Prototype Special Weapon 13592 | -5/Warlord | Found Prototype Special Weapon 13593 | -5/Warlord | Found Prototype Special Weapon 13594 | -5/Warlord | Found Prototype Special Weapon 13596 | -5/Warlord | Identified Exp. Focal Shield 13612 | -5/Warlord | Identified RU-N14's Throwing Claymores v3 (x6) 13652 | -5/Warlord | Found Prototype Device 13698 | -5/Warlord | Found Prototype Energy Cannon 13698 | -5/Warlord | Identified Vortex Driver 13700 | -5/Warlord | Identified Minesniffer Drone Bay 13716 | -5/Warlord | Found Prototype Piercing Weapon 13716 | -5/Warlord | Identified Vortex Lance 13718 | -5/Warlord | Found Vortex Lance 13879 | -5/Warlord | Warlord forces counterattacked 13882 | -5/Warlord | Spotted Executioner 13890 | -5/Warlord | Spotted Striker 13965 | -5/Warlord | Spotted Striker 14089 | -5/Warlord | Spotted Striker 14108 | -5/Warlord | Spotted Striker 14198 | -5/Warlord | Spotted Executioner 14204 | -5/Warlord | Warlord base infiltrated, sounded retreat 14283 | -5/Warlord | Spotted B-86 Titan 14283 | -5/Warlord | Spotted Executioner 14314 | -5/Warlord | Discovered new exit (range 22) 14330 | -5/Warlord | Spotted Executioner 14344 | -5/Warlord | Identified exit to Proximity Caves 14348 | -5/Warlord | Entered Proximity Caves 14405 | -4/Proximity Caves | Learned Research terminal intel 14623 | -4/Proximity Caves | Destroyed 10 combat bots 14672 | -4/Proximity Caves | Discovered exit to Factory (range 17) 14689 | -4/Proximity Caves | Learned Research trap positions 14742 | -4/Proximity Caves | Entered Factory 14742 | -4/Factory | Evolved 2 slots: Power x1, Propulsion x1 14743 | -4/Factory | Identified exit to Upper Caves 14749 | -4/Factory | Discovered new exit (range 13) 14752 | -4/Factory | Identified exit to Research 15054 | -4/Factory | Discovered exit to Upper Caves (range 24) 15132 | -4/Factory | Fabricated Biomechanical Wings? 15151 | -4/Factory | Fabricated Biomechanical Wings? 15439 | -4/Factory | Fabricated Adv. Hacking Suite (x1) 15602 | -4/Factory | Manually triggered Chute Trap 15602 | -4/Factory | Sucked down chute 15602 | -4/Factory | Entered Waste 15603 | -4/Waste | Met a frightened Derelict 15612 | -4/Waste | Spotted C-40 Crusher 15636 | -4/Waste | Spotted C-40 Crusher 15640 | -4/Waste | Spotted C-40 Crusher 15640 | -4/Waste | Spotted C-40 Crusher 15649 | -4/Waste | Spotted C-40 Crusher 15649 | -4/Waste | Spotted C-40 Crusher 15655 | -4/Waste | Warlord forces began an assault 15731 | -4/Waste | Allies destroyed C-40 Crusher 15755 | -4/Waste | Allies destroyed C-40 Crusher 15758 | -4/Waste | Discovered new exit (range 23) 15775 | -4/Waste | Identified exit to Factory 15893 | -4/Waste | Entered Factory 15893 | -4/Factory | Accompanied by 15 allies 15951 | -4/Factory | Garrison activated, responded to threat 15968 | -4/Factory | Spotted B-86 Titan 16000 | -4/Factory | Fabricated Biomechanical Wings (x1) 16481 | -4/Factory | Discovered exit to Research (range 7) 16604 | -4/Factory | Identified Vortex Chain Reactor 16611 | -4/Factory | Discovered exit to Research (range 22) 16705 | -4/Factory | Entered Upper Caves 16796 | -4/Upper Caves | Attracted the attention of an 0b10 checkpoint 16801 | -4/Upper Caves | Spotted B-86 Titan 16808 | -4/Upper Caves | Encountered a Warlord checkpoint 16822 | -4/Upper Caves | Discovered new exit (range 15) 16825 | -4/Upper Caves | Identified exit to Upper Caves 16840 | -4/Upper Caves | Entered another Upper Caves area 16871 | -4/Upper Caves | Spotted B-86 Titan 16998 | -4/Upper Caves | Discovered new exit (range 13) 17003 | -4/Upper Caves | Identified exit to Zhirov 17003 | -4/Upper Caves | Entered Zhirov 17003 | -4/Zhirov | Discovered new exit (range 3) 17008 | -4/Zhirov | Met Zhirov 17013 | -4/Zhirov | Learned location of Quarantine (-2) 17013 | -4/Zhirov | Learned location of Testing (-3) 17013 | -4/Zhirov | Learned location of Command (-1) 17014 | -4/Zhirov | Zhirov requested help retrieving the SGEMP Prototype 17018 | -4/Zhirov | Found Alien Artifact 17018 | -4/Zhirov | Identified Integrated Reactor 17018 | -4/Zhirov | Installed Integrated Reactor, increased core energy generation (+10) 17066 | -4/Zhirov | Found Alien Artifact 17077 | -4/Zhirov | Identified exit to Proximity Caves 17077 | -4/Zhirov | Entered Proximity Caves 17103 | -3/Proximity Caves | Build established: Hacker-Sprinter 17335 | -3/Proximity Caves | Discovered exit to Research (range 13) 17344 | -3/Proximity Caves | Entered Research 17344 | -3/Research | Evolved 2 slots: Propulsion x1, Utility x1 17345 | -3/Research | Loaded intel: 78 trap records 17346 | -3/Research | Loaded intel: 23 terminal locations 17379 | -3/Research | Repaired Cld. Cesium-ion Thruster 17404 | -3/Research | Incoming investigation squad redirected 17494 | -3/Research | Discovered new exit (range 20) 17503 | -3/Research | Found Fusion Bomb Launcher 17622 | -3/Research | Spotted B-86 Titan 17731 | -3/Research | Identified exit to Armory 17731 | -3/Research | Identified exit to Testing 17878 | -3/Research | Incoming investigation squad redirected 17950 | -3/Research | Build established: Hacker-Scout 17991 | -3/Research | Repaired Electron Diverter 18026 | -3/Research | Entered Armory 18027 | -3/Armory | Loaded intel: 13 terminal locations 18159 | -3/Armory | Incoming investigation squad redirected 18227 | -3/Armory | Found Gamma Bomb Array 18242 | -3/Armory | Identified exit to Research 18306 | -3/Armory | Incoming investigation squad redirected 18332 | -3/Armory | Fabricated B-60 Warrior (x3) 18344 | -3/Armory | Fabricated X-62 Marksman? 18545 | -3/Armory | Identified Transdimensional Reconstructor 18545 | -3/Armory | Warped through subspace to slip node 18545 | -3/Armory | Discovered new exit (range 1) 18545 | -3/Armory | Identified exit to Lab 18547 | -3/Armory | Entered Lab 18547 | -3/Lab | Discovered exit to Research (range 9) 18551 | -3/Lab | Unable to decrypt terminal 18551 | -3/Lab | Opened the door to a hidden lab 18552 | -3/Lab | Gained access to the hidden lab's interior 18553 | -3/Lab | Unable to decrypt terminal 18565 | -3/Lab | Found Alien Artifact 18565 | -3/Lab | Identified Core Reset Matrix 18565 | -3/Lab | Used Core Reset Matrix 18568 | -3/Lab | Unable to decrypt terminal 18569 | -3/Lab | Sensed 3 artifacts in vicinity 18580 | -3/Lab | Found Transdimensional Reconstructor 18588 | -3/Lab | Found Integrated Reactor 18588 | -3/Lab | Installed Integrated Reactor, increased core energy generation (+10) 18604 | -3/Lab | Detected by scanners 18606 | -3/Lab | Found Prototype Hackware 18608 | -3/Lab | Found Prototype Device 18608 | -3/Lab | Identified AEGIS Remote Shield 18612 | -3/Lab | Found Prototype Energy Cannon 18612 | -3/Lab | Identified Potential Cannon 18625 | -3/Lab | Found Prototype Energy Cannon 18625 | -3/Lab | Identified Warp Cannon 18628 | -3/Lab | Confronted by A5 18671 | -3/Lab | Destroyed A5 18675 | -3/Lab | Found Prototype Hackware 18675 | -3/Lab | Identified Exp. Hacking Suite 18683 | -3/Lab | Lost 3 parts (1p2u) 18699 | -3/Lab | Unable to decrypt terminal 18703 | -3/Lab | Found Prototype Special Weapon 18703 | -3/Lab | Identified Gui. Remote Datajack 18756 | -3/Lab | Discovered exit to Research (range 13) 18835 | -3/Lab | Entered Research 18835 | -2/Research | Warlord forces began assault on 0b10 18835 | -2/Research | Evolved 2 slots: Propulsion x2 18851 | -2/Research | Discovered new exit (range 24) 18853 | -2/Research | Identified Quantum Router 18861 | -2/Research | Identified exit to Access 18932 | -2/Research | Met up with Warlord 18945 | -2/Research | Research machine network offline 18976 | -2/Research | Discovered exit to Access (range 15) 19123 | -2/Research | Spotted Tracker 19124 | -2/Research | Spotted Tracker 19139 | -2/Research | Spotted Combat Programmer 19248 | -2/Research | System corruption reached 10% 19249 | -2/Research | Found Prototype Processor 19249 | -2/Research | Identified Exp. Core Analyzer 19252 | -2/Research | Found Exp. Core Analyzer 19270 | -2/Research | Borebot progress halted 19300 | -2/Research | Found Unknown Device 19300 | -2/Research | Identified Antimissile System 19309 | -2/Research | Borebot progress halted 19396 | -2/Research | Spotted Striker 19473 | -2/Research | Build established: Wizard-Scout 19510 | -2/Research | Borebot progress halted 19695 | -2/Research | Spotted Tracker 19696 | -2/Research | Spotted Tracker 19707 | -2/Research | Destroyed Tracker 19709 | -2/Research | Destroyed Tracker 19709 | -2/Research | Spotted Combat Programmer 19724 | -2/Research | Spotted Combat Programmer 19734 | -2/Research | Destroyed Combat Programmer 19745 | -2/Research | Destroyed Combat Programmer 19774 | -2/Research | Lost 7 parts (2p3n2u) 19886 | -2/Research | Spotted Executioner 19887 | -2/Research | Spotted Striker 19889 | -2/Research | Destroyed Executioner 19898 | -2/Research | Spotted Striker 19917 | -2/Research | Spotted Executioner 19920 | -2/Research | Spotted Executioner 19926 | -2/Research | Warped through subspace 19956 | -2/Research | Lost 11 parts (2p5n3u1w) 20001 | -2/Research | Found Exp. Core Analyzer 20003 | -2/Research | Found Prototype Processor 20003 | -2/Research | Identified Exp. Targeting Computer 20044 | -2/Research | Spotted Executioner 20044 | -2/Research | Spotted Executioner 20070 | -2/Research | Spotted B-90 Cyclops 20112 | -2/Research | Spotted Tracker 20119 | -2/Research | Spotted Tracker 20126 | -2/Research | Destroyed Tracker 20131 | -2/Research | Destroyed Tracker 20132 | -2/Research | Spotted Combat Programmer 20138 | -2/Research | Core integrity fell below 50% 20148 | -2/Research | Spotted Combat Programmer 20152 | -2/Research | Emitted hypermatrix ping 20152 | -2/Research | System corruption reached 30% 20157 | -2/Research | Assembled emerged from beneath the floor 20160 | -2/Research | Assembled emerged from beneath the floor 20179 | -2/Research | Discovered new exit (range 11) 20188 | -2/Research | Lost 16 parts (2p8n5u1w) 20188 | -2/Research | Entered Quarantine 20189 | -2/Quarantine | Detected hypermatrix surge 20189 | -2/Quarantine | Sensed 15 artifacts in vicinity 20210 | -2/Quarantine | Cryocooling Duct disabled 20225 | -2/Quarantine | Ambient heat levels rising (+20) 20225 | -2/Quarantine | Non-combat units ordered to evacuate 20235 | -2/Quarantine | Found Transdimensional Reconstructor 20258 | -2/Quarantine | Found Sigix Broadsword 20525 | -2/Quarantine | Intercept squad dispatched 20533 | -2/Quarantine | Spotted Tracker 20534 | -2/Quarantine | Spotted Tracker 20536 | -2/Quarantine | Warped through subspace 20554 | -2/Quarantine | Core integrity fell below 20% 20554 | -2/Quarantine | Destroyed Tracker 20554 | -2/Quarantine | Destroyed Tracker 20589 | -2/Quarantine | Lost 10 parts (7n2u1w) 20637 | -2/Quarantine | Destroyed by S-43 Plague with Heavy Machine Gun Last Messages --------------- 20564_ Acquired 14 matter. 20565_ The unstable cave ceiling collapses. 20565_ Unknown Processor crushed. 20567_ Acquired Unknown Leg. 20567_ Identified Myomer Leg. 20568_ ,RRO/YCATLL5%0G1BDUBXO<%VV8 20570_ The unstable cave ceiling collapses. 20575_ Acquired Imp. Antigrav System. 20583_ System corrupted: Matter fused (-7). 20598_ System corrupted: Energy discharge (-38). 20599_ Acquired Imp. Antigrav System. 20610_ Acquired Gravmag System. 20613_ Acquired Unknown Hover Unit. 20613_ Identified Imp. Linear Gravjet. 20614_ System corrupted: Heat flow error (+167). 20626_ Acquired 6 matter. 20630_ Dropped Faulty Exp. Q-thruster. 20636_ Acquired Unknown Hackware. 20636_ Identified Relay Coupler [Grunt]. 20636_ Relay Coupler [Grunt] fries itself. Map ----- +----------------------------------------------------+ | ?????????????????????????????????????????????????? | | ?????????????????????????????????????????????????? | | ?????????????????????????????????????????????????? | | ?????????????????????????????????????????????????? | | ?????????????????????????????????????????????????? | | ?????????????????????????????????????????????????? | | ?????????????????????????????????????????????????? | | ?????????????????????????????????????????????????? | | ?????????????????????????????????????????????????? | | #######??????????????????????????????????????????? | | # #??????????????????????????????????????????? | | # #??????????????????????????????????????????? | | # " ######?????????????????????!???????????????? | | # " # #?????????????????????????????????????? | | #?????????????????????????????????????? | | #######################???????????????? | | * ! ???????????????? | | ???????????????? | | """"""" """""???? ?????!??? | | # # """"""" """"""" ?????????? | | # ############### """" """"""" ??????????? | | # #?????????????# s #???????? | | ###+################# #???????? | | " ! [ ??????? | | " ???????? | | @ ????????? | | ! ????????? | | ### ################# !] #############??????? | | ??# #????????######## !]=##?# #??????? | | ?## ##???????#!!"" # """!]#### #??????? | | ## #???????#!"" =+ """=!! # """ " ######## | | #???????#"" # """ # " " " + | | ## #???????#" # + """ " " | | ###+####?????#"" # # "" # | | # #?????#!"" # ;####### """ " # "" | | #"""" #?????#!!"T # ##?????# "/" " # " | | #"""" #?????######## [%#??????# """ " # " | | #"""" #???# + %%!#??????# # | | #"""" #???# "" # ![*###????########### | | # #???# "" # * [=#########??????# | | ?#######???# """"" # [ = ########### +## | | ???????????# """!" ## | | ???????????# """"" ## *! ![ | | ???????????# "" ## !* !! | | ???????????# "" ## ] | | ???????????# # = ############### | | ???????????######## ## ""#?????????????? | | ??????????????????# " ""#?????????????? | | ??????????????????# " ""#?????????????? | | ??????????????????# " T#?????????????? | +----------------------------------------------------+ Best States ------------- Heat Dissipation 75 Energy Generation 75 Energy Capacity 750 Matter Stores 300 Matter Capacity 550 Sight Range 24 Robot Scan Range 18 Terrain Scan Range 20 Terrain Scan Density 10 Additional Mass Support 16 Base Temperature (-) 200 Armor Coverage 375 Resistance: TH 10 Core Shielding 40 Propulsion Shielding 66 Utility Shielding 33 Weapon Shielding 66 Evasion (%) 80 Targeting Accuracy 12 Melee Accuracy 20 Core Analysis 8 Armor Integrity Analysis 30 Recoil Reduction 6 Particle Charging 20 Force Boost 30 Offensive Hacking 35 Defensive Hacking 53 Item Schematics ----------------- Exp. Q-thruster | -2/Quarantine | Scanalyzed Robot Schematics ------------------ R-10 Processor | -2/Quarantine | Hacked Fabricated ------------ S-27 Virus | x4 | -7/Factory | Preloaded Adv. Reaction Control System | x1 | -7/Factory | Preloaded Enh. Optical Array | x1 | -7/Factory G-50 Soldier | x3 | -6/Factory | Preloaded Biomechanical Wings | x1 | -6/Factory Lgt. Regenerative Plating | x1 | -5/Factory Biomechanical Wings | x1 | -5/Factory Biomechanical Wings | x1 | -5/Factory Biomechanical Wings | x1 | -4/Factory Biomechanical Wings | x1 | -4/Factory Adv. Hacking Suite | x1 | -4/Factory Biomechanical Wings | x1 | -4/Factory B-60 Warrior | x3 | -3/Armory | Preloaded X-62 Marksman | x2 | -3/Armory Alien Tech Used ----------------- Integrated Reactor Transdimensional Reconstructor Core Reset Matrix Sigix Broadsword Achievements -------------- Anyone Home? Challenges ------------ None Game ------ Seed MeleeRemoteScythe Manual? 0 Play Time 04:51:05 Cumulative 640.5 hours Start 2023.04.10 @ 12:58:39 End 2023.04.11 @ 11:46:26 Sessions 1 Manual Loads 0 Difficulty Rogue Special Mode None Game No. 646 Rogue 645 Adventurer 0 Explorer 1 Win Type - Total 30 Types 21/0/6/3/0/0/0/0/0 Lore% 84 Gallery% 92 Achievement% 78 Wizard Run 0 Options --------- ASCII 0 Keyboard 1 Movement Vi Keybinds 0 Fullscreen 1 Font 18/SmallcapsGlow Map View 76x50 Tactical HUD 1 Map Filters NONE Filters NONE Steam 1 RUN: 88aa0b7c-a5b6-4d32-af2f-f5113e2afec2